Workbook

Sheet Main
H1: log (V) = log (K) + b* log(R)
H2: b = | I2: =Regression!$V2 -> 0.1971248623
H3: log (K)= | I3: =Regression!$V3 -> 0.2678796436
H4: R^2 | I4: =Regression!$V4 -> 0.5731307177
H6: log (V) = a * log(D) + b* log (R)
H7: where D= |dX*d2Y-d2X*dY|
H8: b = | I8: =Regression!$V8 -> 0.3333333333
H9: a= | I9: =Regression!$V9 -> 0.3333333333
H10: R^2 | I10: =Regression!$V10 -> 1
H12: log (A) = log (K)+ b* log(C)
H13: b = | I13: =Regression!$V13 -> 0.8028751377
H14: log (K)= | I14: =Regression!$V14 -> 0.2678796436
H15: R^2 | I15: =Regression!$V15 -> 0.957031117
H17: log (A) = a * log(D) + b* log (C)
H18: b = | I18: =Regression!$V18 -> 0.6666666667
H19: a= | I19: =Regression!$V19 -> 0.3333333333
H20: R^2 | I20: =Regression!$V20 -> 1

Sheet Regression
B1: Controlled Elipse Feedback = .5 | U1: log (V) = log (K) + b* log(R)
A2: Time | B2: x | C2: y | D2: R | E2: V | F2: D= |dX*d2Y-d2X*dY| | G2: log D | H2: log R | I2: log V | J2: C | K2: A | L2: log D | M2: log C | N2: log A | O2: X.dot | P2: Y.dot | Q2: X.2dot | R2: Y.2dot | U2: b = | V2: =U23 -> 0.1971248623
A3: 0 | B3: 0.3759993848 | C3: 12.97634414 | U3: log (K)= | V3: =V23 -> 0.2678796436
A4: 0.0083 | B4: 0.3020530714 | C4: 9.886376602 | O4: =(B4-B3)/(A4-A3) -> -8.909194388 | P4: =(C4-C3)/(A4-A3) -> -372.285246 | U4: R^2 | V4: =U25 -> 0.5731307177
A5: 0.0167 | B5: 0.287287567 | C5: 9.913169446 | D5: =((O5^2+P5^2)^(3/2))/F5 -> 0.07074312665 | E5: =SQRT(O5^2+P5^2) -> 3.641916731 | F5: =ABS(O5*R5-Q5*P5) -> 682.8192953 | G5: =LOG10(F5) -> 2.834305785 | H5: =LOG10(D5) -> -1.150315749 | I5: =LOG10(E5) -> 0.5613300118 | J5: =1/D5 -> 14.13564889 | K5: =E5/D5 -> 51.48085621 | L5: =LOG(F5) -> 2.834305785 | M5: =LOG(J5) -> 1.150315749 | N5: =LOG(K5) -> 1.711645761 | O5: -1.757798139 | P5: 3.189624301 | Q5: =O5-O4 -> 7.151396249 | R5: =P5-P4 -> 375.4748703
A6: 0.025 | B6: 0.3011715381 | C6: 9.908100984 | D6: =((O6^2+P6^2)^(3/2))/F6 -> 1.324900797 | E6: =SQRT(O6^2+P6^2) -> 1.780745576 | F6: =ABS(O6*R6-Q6*P6) -> 4.262086515 | G6: =LOG10(F6) -> 0.6296222611 | H6: =LOG10(D6) -> 0.1221833614 | I6: =LOG10(E6) -> 0.2506018742 | J6: 0.7547734911 | K6: 1.344059555 | L6: 0.6296222611 | M6: =LOG(J6) -> -0.1221833614 | N6: =LOG(K6) -> 0.1284185128 | O6: 1.672767609 | P6: -0.6106581159 | Q6: =O6-O5 -> 3.430565747 | R6: -3.800282417 | U6: log (V) = a * log(D) + b* log (R)
A7: 0.0333 | B7: 0.3289928248 | C7: 9.902652233 | D7: 42.00061928 | E7: 3.415642213 | F7: 0.9487710462 | G7: -0.02283857721 | H7: 1.623255694 | I7: 0.5334723722 | J7: 0.02380917275 | K7: 0.0813236155 | L7: -0.02283857721 | M7: -1.623255694 | N7: -1.089783322 | O7: 3.351962246 | P7: -0.6564760686 | Q7: 1.679194637 | R7: -0.04581795269 | U7: where D= |dX*d2Y-d2X*dY|
A8: 0.0417 | B8: 0.3637905495 | C8: 9.896469952 | D8: 294.9692405 | E8: 4.207457198 | F8: 0.2525122142 | G8: -0.5977176099 | H8: 2.46977673 | I8: 0.6240197067 | J8: 0.003390184002 | K8: 0.01426405408 | L8: -0.5977176099 | M8: -2.46977673 | N8: -1.845757023 | O8: 4.142586271 | P8: -0.7359857761 | Q8: 0.7906240251 | R8: -0.07950970746 | U8: b = | V8: =U29 -> 0.3333333333
A9: 0.05 | B9: 0.4016526146 | C9: 9.889635918 | D9: 1859.255114 | E9: 4.635408103 | F9: 0.05357040653 | G9: -1.271075058 | H9: 3.269338985 | I9: 0.6660879756 | J9: 0.0005378498046 | K9: 0.002493153343 | L9: -1.271075058 | M9: -3.269338985 | N9: -2.603251009 | O9: 4.561694599 | P9: -0.8233776011 | Q9: 0.4191083276 | R9: -0.08739182496 | U9: a= | V9: =V29 -> 0.3333333333
A10: 0.0583 | B10: 0.4409104436 | C10: 9.882119283 | D10: 471.8551697 | E10: 4.815777237 | F10: 0.2366957453 | G10: -0.6258095487 | H10: 2.673808718 | I10: 0.6826663896 | J10: 0.00211929436 | K10: 0.01020604954 | L10: -0.6258095487 | M10: -2.673808718 | N10: -1.991142328 | O10: 4.729858908 | P10: -0.905618633 | Q10: 0.1681643097 | R10: -0.08224103194 | U10: R^2 | V10: =U31 -> 1
A11: 0.0667 | B11: 0.4809944652 | C11: 9.873857119 | D11: 349.7219524 | E11: 4.872222373 | F11: 0.3307184402 | G11: -0.480541589 | H11: 2.543722894 | I11: 0.6877271017 | J11: 0.002859414438 | K11: 0.013931703 | L11: -0.480541589 | M11: -2.543722894 | N11: -1.855995792 | O11: 4.771907334 | P11: -0.9835909965 | Q11: 0.04204842598 | R11: -0.07797236353
A12: 0.075 | B12: 0.5211252361 | C12: 9.864978381 | D12: 347.9941849 | E12: 4.95195492 | F12: 0.3489458684 | G12: -0.4572419394 | H12: 2.541571987 | I12: 0.6947766825 | J12: 0.002873611237 | K12: 0.0142299933 | L12: -0.4572419394 | M12: -2.541571987 | N12: -1.846795304 | O12: 4.835032641 | P12: -1.069727487 | Q12: 0.06312530635 | R12: -0.08613649064 | U12: log (A) = log (K)+ b* log(C)
A13: 0.0833 | B13: 0.5611691833 | C13: 9.855426914 | D13: 302.7156945 | E13: 4.959918059 | F13: 0.4030775103 | G13: -0.3946114326 | H13: 2.481034938 | I13: 0.6954745017 | J13: 0.003303429647 | K13: 0.01638474036 | L13: -0.3946114326 | M13: -2.481034938 | N13: -1.785560436 | O13: 4.824571951 | P13: -1.150779147 | Q13: -0.01046068992 | R13: -0.08105166022 | U13: b = | V13: =U35 -> 0.8028751377
A14: 0.0917 | B14: 0.6013086829 | C14: 9.845115249 | D14: 283.5466329 | E14: 4.933672686 | F14: 0.423532271 | G14: -0.3731134931 | H14: 2.452624494 | I14: 0.6931703338 | J14: 0.003526756745 | K14: 0.01739986342 | L14: -0.3731134931 | M14: -2.452624494 | N14: -1.759454161 | O14: 4.778511854 | P14: -1.227579178 | Q14: -0.04606009698 | R14: -0.07680003026 | U14: log (K)= | V14: =V35 -> 0.2678796436
A15: 0.1 | B15: 0.6411339714 | C15: 9.834222565 | D15: 323.1011469 | E15: 4.97446546 | F15: 0.380978756 | G15: -0.4190992406 | H15: 2.5093385 | I15: 0.6967464197 | J15: 0.003095006037 | K15: 0.01539600063 | L15: -0.4190992406 | M15: -2.5093385 | N15: -1.81259208 | O15: 4.798227542 | P15: -1.312371543 | Q15: 0.01971568788 | R15: -0.08479236557 | U15: R^2 | V15: =U37 -> 0.957031117
A16: 0.1083 | B16: 0.6806924655 | C16: 9.822667378 | D16: 287.9082593 | E16: 4.965254205 | F16: 0.4251775645 | G16: -0.3714296602 | H16: 2.459254124 | I16: 0.6959414879 | J16: 0.00347332863 | K16: 0.01724595959 | L16: -0.3714296602 | M16: -2.459254124 | N16: -1.763312636 | O16: 4.766083616 | P16: -1.392191182 | Q16: -0.0321439258 | R16: -0.07981963916
A17: 0.1167 | B17: 0.7202548638 | C17: 9.810337709 | D17: 273.6157313 | E17: 4.933233519 | F17: 0.4387872077 | G17: -0.3577460423 | H17: 2.437141063 | I17: 0.6931316737 | J17: 0.00365476062 | K17: 0.0180297876 | L17: -0.3577460423 | M17: -2.437141063 | N17: -1.74400939 | O17: 4.709809332 | P17: -1.467817771 | Q17: -0.05627428394 | R17: -0.0756265888 | U17: log (A) = a * log(D) + b* log (C)
A18: 0.125 | B18: 0.759456216 | C18: 9.797462824 | D18: 329.1716414 | E18: 4.971261124 | F18: 0.3732306614 | G18: -0.4280226856 | H18: 2.517422413 | I18: 0.6964665758 | J18: 0.003037928771 | K18: 0.0151023372 | L18: -0.4280226856 | M18: -2.517422413 | N18: -1.820955837 | O18: 4.723054475 | P18: -1.551191023 | Q18: 0.01324514351 | R18: -0.08337325161 | U18: b = | V18: =U41 -> 0.6666666667
A19: 0.1333 | B19: 0.7983655836 | C19: 9.783935935 | D19: 287.255125 | E19: 4.963088622 | F19: 0.4255869521 | G19: -0.3710116953 | H19: 2.458267786 | I19: 0.6957520302 | J19: 0.003481225966 | K19: 0.01727763298 | L19: -0.3710116953 | M19: -2.458267786 | N19: -1.762515756 | O19: 4.687875614 | P19: -1.629745657 | Q19: -0.03517886183 | R19: -0.07855463438 | U19: a= | V19: =V41 -> 0.3333333333
A20: 0.1417 | B20: 0.8372637503 | C20: 9.769620598 | D20: 271.6978935 | E20: 4.934371204 | F20: 0.4421902693 | G20: -0.3543908186 | H20: 2.434086271 | I20: 0.6932318176 | J20: 0.003680558532 | K20: 0.01816124203 | L20: -0.3543908186 | M20: -2.434086271 | N20: -1.740854454 | O20: 4.630734136 | P20: -1.704206719 | Q20: -0.0571414778 | R20: -0.07446106143 | U20: R^2 | V20: =U43 -> 1
A21: 0.15 | B21: 0.875792547 | C21: 9.754796 | D21: 341.8188198 | E21: 4.973783636 | F21: 0.3599686648 | G21: -0.4437353029 | H21: 2.53379597 | I21: 0.6966868892 | J21: 0.002925526454 | K21: 0.01455093561 | L21: -0.4437353029 | M21: -2.53379597 | N21: -1.837109081 | O21: 4.642023699 | P21: -1.7860962 | Q21: 0.01128956369 | R21: -0.08188948101
A22: 0.1583 | B22: 0.914023884 | C22: 9.739330092 | D22: 290.2300916 | E22: 4.968808856 | F22: 0.4226826602 | G22: -0.373985568 | H22: 2.462742439 | I22: 0.6962522903 | J22: 0.003445542102 | K22: 0.01712024011 | L22: -0.373985568 | M22: -2.462742439 | N22: -1.766490149 | O22: 4.606185183 | P22: -1.863362419 | Q22: -0.03583851604 | R22: -0.07726621967 | U22: R | V22: K
A23: 0.1667 | B23: 0.952239258 | C23: 9.723062027 | D23: 272.6256004 | E23: 4.944511753 | F23: 0.4434080827 | G23: -0.3531963946 | H23: 2.435566635 | I23: 0.6941234135 | J23: 0.003668034104 | K23: 0.01813663774 | L23: -0.3531963946 | M23: -2.435566635 | N23: -1.741443222 | O23: 4.549449281 | P23: -1.936674395 | Q23: -0.05673590224 | R23: -0.07331197536 | U23: =LINEST(I10:I1000,H10:H1000,,TRUE) -> 0.1971248623 | V23: 0.2678796436
A24: 0.175 | B24: 0.9900829909 | C24: 9.706320711 | D24: 358.0613002 | E24: 4.985710101 | F24: 0.3461175994 | G24: -0.4607763171 | H24: 2.553957384 | I24: 0.6977270224 | J24: 0.002792817877 | K24: 0.0139241803 | L24: -0.4607763171 | M24: -2.553957384 | N24: -1.856230362 | O24: 4.559485892 | P24: -2.017025932 | Q24: 0.01003661053 | R24: -0.08035153783 | U24: 0.005409583967 | V24: 0.01680912999
A25: 0.1833 | B25: 1.027627576 | C25: 9.688948897 | D25: 295.4709546 | E25: 4.984190169 | F25: 0.419053061 | G25: -0.3777309827 | H25: 2.470514795 | I25: 0.6975946042 | J25: 0.003384427418 | K25: 0.01686862986 | L25: -0.3777309827 | M25: -2.470514795 | N25: -1.772920191 | O25: 4.52344402 | P25: -2.092989688 | Q25: -0.03604187161 | R25: -0.07596375546 | U25: 0.5731307177 | V25: 0.07129201507
A26: 0.1917 | B26: 1.06515395 | C26: 9.67076141 | D26: 275.7067836 | E26: 4.964461877 | F26: 0.4437813922 | G26: -0.3528309118 | H26: 2.440447452 | I26: 0.69587218 | J26: 0.003627041696 | K26: 0.01800631022 | L26: -0.3528309118 | M26: -2.440447452 | N26: -1.744575272 | O26: 4.467425477 | P26: -2.165176976 | Q26: -0.05601854334 | R26: -0.07218728853 | U26: 1327.868515 | V26: 989
A27: 0.2 | B27: 1.102308601 | C27: 9.652136651 | D27: 377.8049361 | E27: 5.007397209 | F27: 0.3323291992 | G27: -0.4784314989 | H27: 2.577267628 | I27: 0.6996120429 | J27: 0.002646868541 | K27: 0.01325392215 | L27: -0.4784314989 | M27: -2.577267628 | N27: -1.877655585 | O27: 4.476463886 | P27: -2.243946943 | Q27: 0.009038409538 | R27: -0.07876996657
A28: 0.2083 | B28: 1.139164279 | C28: 9.632892244 | D28: 302.8773115 | E28: 5.009336974 | F28: 0.4150247533 | G28: -0.3819259999 | H28: 2.481266742 | I28: 0.6997802473 | J28: 0.003301666919 | K28: 0.01653916217 | L28: -0.3819259999 | M28: -2.481266742 | N28: -1.781486494 | O28: 4.440443208 | P28: -2.31860325 | Q28: -0.0360206783 | R28: -0.07465630705 | U28: R | V28: D | W28: I
A29: 0.2167 | B29: 1.176001038 | C29: 9.612818784 | D29: 280.8775213 | E29: 4.99417259 | F29: 0.4434796095 | G29: -0.3531263435 | H29: 2.448516984 | I29: 0.6984635468 | J29: 0.003560270667 | K29: 0.01778060618 | L29: -0.3531263435 | M29: -2.448516984 | N29: -1.750053437 | O29: 4.385328424 | P29: -2.38969757 | Q29: -0.05511478404 | R29: -0.07109432039 | U29: =LINEST(I10:I1000,G10:H1000,,TRUE) -> 0.3333333333 | V29: 0.3333333333 | W29: -1.776356839e-15
A30: 0.225 | B30: 1.212467666 | C30: 9.592343906 | D30: 401.4578633 | E30: 5.038731713 | F30: 0.3186572004 | G30: -0.4966762638 | H30: 2.603639969 | I30: 0.702321235 | J30: 0.002490921442 | K30: 0.01255108487 | L30: -0.4966762638 | M30: -2.603639969 | N30: -1.901318734 | O30: 4.393569653 | P30: -2.466852851 | Q30: 0.008241228695 | R30: -0.07715528048 | U30: 1.765509626e-17 | V30: 2.700395769e-17 | W30: 4.800924765e-17
A31: 0.2333 | B31: 1.248637074 | C31: 9.571260201 | D31: 312.542152 | E31: 5.044077315 | F31: 0.410616698 | G31: -0.3865633938 | H31: 2.494908598 | I31: 0.7027817348 | J31: 0.003199568422 | K31: 0.0161388705 | L31: -0.3865633938 | M31: -2.494908598 | N31: -1.792126863 | O31: 4.357760021 | P31: -2.540205417 | Q31: -0.0358096314 | R31: -0.07335256571 | U31: 1 | V31: 1.81630053e-16
A32: 0.2417 | B32: 1.284788214 | C32: 9.549334142 | D32: 288.1735151 | E32: 5.033415832 | F32: 0.4425214925 | G32: -0.3540656315 | H32: 2.459654064 | I32: 0.7018628108 | J32: 0.003470131527 | K32: 0.01746661497 | L32: -0.3540656315 | M32: -2.459654064 | N32: -1.757791253 | O32: 4.303707173 | P32: -2.610245105 | Q32: -0.05405284817 | R32: -0.07003968858 | U32: 1.78475149e+32 | V32: 988
A33: 0.25 | B33: 1.320572363 | C33: 9.527042309 | D33: 429.5843472 | E33: 5.079468776 | F33: 0.3050748711 | G33: -0.5155935636 | H33: 2.633048449 | I33: 0.705818295 | J33: 0.002327831558 | K33: 0.01182414771 | L33: -0.5155935636 | M33: -2.633048449 | N33: -1.927230154 | O33: 4.311343211 | P33: -2.685762976 | Q33: 0.007636037694 | R33: -0.07551787053
A34: 0.2583 | B34: 1.356062512 | C34: 9.504152372 | D34: 324.6008255 | E34: 5.088132986 | F34: 0.4058128001 | G34: -0.3916742587 | H34: 2.51134962 | I34: 0.7065584538 | J34: 0.003080706891 | K34: 0.01567504636 | L34: -0.3916742587 | M34: -2.51134962 | N34: -1.804791166 | O34: 4.275921591 | P34: -2.757823749 | Q34: -0.03542161944 | R34: -0.07206077337 | U34: C | V34: K
A35: 0.2667 | B35: 1.391536309 | C35: 9.480406807 | D35: 297.6563994 | E35: 5.081872379 | F35: 0.4409161832 | G35: -0.3556439607 | H35: 2.473715224 | I35: 0.7060237544 | J35: 0.003359578367 | K35: 0.01707294851 | L35: -0.3556439607 | M35: -2.473715224 | N35: -1.76769147 | O35: 4.223071037 | P35: -2.826853001 | Q35: -0.0528505542 | R35: -0.06902925214 | U35: =LINEST(N10:N1000,M10:M1000,,TRUE) -> 0.8028751377 | V35: 0.2678796436
A36: 0.275 | B36: 1.426647703 | C36: 9.456330823 | D36: 462.8721895 | E36: 5.129280877 | F36: 0.291546852 | G36: -0.5352916435 | H36: 2.665461088 | I36: 0.7100564815 | J36: 0.002160423596 | K36: 0.01108141944 | L36: -0.5352916435 | M36: -2.665461088 | N36: -1.955404607 | O36: 4.230288463 | P36: -2.900720917 | Q36: 0.00721742613 | R36: -0.07386791555 | U36: 0.005409583967 | V36: 0.01680912999
A37: 0.2833 | B37: 1.461469691 | C37: 9.431667294 | D37: 339.2113148 | E37: 5.141149658 | F37: 0.4005995052 | G37: -0.3972895915 | H37: 2.53047033 | I37: 0.7110602463 | J37: 0.00294801487 | K37: 0.01515618564 | L37: -0.3972895915 | M37: -2.53047033 | N37: -1.819410084 | O37: 4.195420204 | P37: -2.971509568 | Q37: -0.03486825941 | R37: -0.0707886515 | U37: 0.957031117 | V37: 0.07129201507
A38: 0.2917 | B38: 1.496278407 | C38: 9.406134842 | D38: 309.4030514 | E38: 5.139153277 | F38: 0.4386823083 | G38: -0.35784988 | H38: 2.490524592 | I38: 0.7108915708 | J38: 0.00323203018 | K38: 0.01660989849 | L38: -0.35784988 | M38: -2.490524592 | N38: -1.779633022 | O38: 4.143894815 | P38: -3.03957763 | Q38: -0.05152538926 | R38: -0.06806806166 | U38: 22027.65604 | V38: 989
A39: 0.3 | B39: 1.530730659 | C39: 9.38030696 | D39: 502.1531106 | E39: 5.187774772 | F39: 0.278039937 | G39: -0.5558928186 | H39: 2.700836157 | I39: 0.7149811129 | J39: 0.001991424486 | K39: 0.01033106171 | L39: -0.5558928186 | M39: -2.700836157 | N39: -1.985855044 | O39: 4.150873629 | P39: -3.111792925 | Q39: 0.006978814398 | R39: -0.07221529467
A40: 0.3083 | B40: 1.564899363 | C40: 9.353901869 | D40: 356.5527528 | E40: 5.202712103 | F40: 0.3949713457 | G40: -0.4034344103 | H40: 2.552123794 | I40: 0.7162297945 | J40: 0.002804634075 | K40: 0.01459170365 | L40: -0.4034344103 | M40: -2.552123794 | N40: -1.835893999 | O40: 4.11671141 | P40: -3.18133626 | Q40: -0.03416221875 | R40: -0.06954333494 | U40: C | V40: D | W40: I
A41: 0.3167 | B41: 1.599058936 | C41: 9.326614498 | D41: 323.5029803 | E41: 5.204814553 | F41: 0.4358504459 | G41: -0.3606625054 | H41: 2.509878286 | I41: 0.7164052602 | J41: 0.00309116163 | K41: 0.01608892304 | L41: -0.3606625054 | M41: -2.509878286 | N41: -1.793473026 | O41: 4.066615856 | P41: -3.248496577 | Q41: -0.05009555414 | R41: -0.06716031695 | U41: =LINEST(N10:N1000,L10:M1000,,TRUE) -> 0.6666666667 | V41: 0.3333333333 | W41: 2.220446049e-15
A42: 0.325 | B42: 1.632869217 | C42: 9.29906625 | D42: 548.4383635 | E42: 5.254505535 | F42: 0.2645256165 | G42: -0.5775322648 | H42: 2.739127826 | I42: 0.7205318538 | J42: 0.001823358952 | K42: 0.009580849707 | L42: -0.5775322648 | M42: -2.739127826 | N42: -2.018595972 | O42: 4.073527805 | P42: -3.319066079 | Q42: 0.006911948663 | R42: -0.07056950255 | U42: 2.059311131e-17 | V42: 3.14977329e-17 | W42: 5.599854942e-17
A43: 0.3333 | B43: 1.666402964 | C43: 9.270950851 | D43: 376.8260773 | E43: 5.272358232 | F43: 0.3889320952 | G43: -0.4101262169 | H43: 2.576140949 | I43: 0.7220049108 | J43: 0.002653744155 | K43: 0.01399148984 | L43: -0.4101262169 | M43: -2.576140949 | N43: -1.854136039 | O43: 4.040210421 | P43: -3.38739739 | Q43: -0.03331738398 | R43: -0.06833131121 | U43: 1 | V43: 2.118554236e-16
A44: 0.3417 | B44: 1.69993266 | C44: 9.241939715 | D44: 340.056161 | E44: 5.278371342 | F44: 0.4324632156 | G44: -0.3640508268 | H44: 2.531550648 | I44: 0.7224999403 | J44: 0.002940690729 | K44: 0.01552205767 | L44: -0.3640508268 | M44: -2.531550648 | N44: -1.809050707 | O44: 3.991630481 | P44: -3.453706723 | Q44: -0.04857993937 | R44: -0.06630933241 | U44: 1.303211307e+33 | V44: 988
A45: 0.35 | B45: 1.73312135 | C45: 9.212701751 | D45: 602.9664633 | E45: 5.328990327 | F45: 0.2509814582 | G45: -0.6003583617 | H45: 2.780293158 | I45: 0.7266449319 | J45: 0.001658467031 | K45: 0.008837954765 | L45: -0.6003583617 | M45: -2.780293158 | N45: -2.053648226 | O45: 3.998637395 | P45: -3.522646291 | Q45: 0.007006913552 | R45: -0.06893956842
A46: 0.3583 | B46: 1.766041546 | C46: 9.182906372 | D46: 400.2544488 | E46: 5.349592784 | F46: 0.3824952141 | G46: -0.4173739945 | H46: 2.602336168 | I46: 0.7283207244 | J46: 0.002498410706 | K46: 0.01336547989 | L46: -0.4173739945 | M46: -2.602336168 | N46: -1.874015443 | O46: 3.966288629 | P46: -3.589804657 | Q46: -0.03234876631 | R46: -0.06715836569
A47: 0.3667 | B47: 1.798963587 | C47: 9.152201666 | D47: 359.1701787 | E47: 5.359311468 | F47: 0.4285748902 | G47: -0.3679732775 | H47: 2.555300271 | I47: 0.7291089977 | J47: 0.002784195514 | K47: 0.01492137094 | L47: -0.3679732775 | M47: -2.555300271 | N47: -1.826191273 | O47: 3.919290658 | P47: -3.655322167 | Q47: -0.04699797036 | R47: -0.06551751062
A48: 0.375 | B48: 1.831553893 | C48: 9.12130362 | D48: 667.2660622 | E48: 5.410721556 | F48: 0.2373922399 | G48: -0.6245334817 | H48: 2.824299037 | I48: 0.733255185 | J48: 0.001498652571 | K48: 0.008108791773 | L48: -0.6245334817 | M48: -2.824299037 | N48: -2.091043852 | O48: 3.926542877 | P48: -3.722656147 | Q48: 0.007252218842 | R48: -0.06733397934
A49: 0.3833 | B49: 1.863884638 | C49: 9.089857529 | D49: 427.0829177 | E49: 5.433900213 | F49: 0.375684066 | G49: -0.4251772245 | H49: 2.630512201 | I49: 0.7351116589 | J49: 0.002341465693 | K49: 0.01272329093 | L49: -0.4251772245 | M49: -2.630512201 | N49: -1.895400542 | O49: 3.895270509 | P49: -3.78868568 | Q49: -0.03127236766 | R49: -0.06602953345
A50: 0.3917 | B50: 1.896223807 | C50: 9.057488364 | D50: 380.9564155 | E50: 5.447107929 | F50: 0.4242507801 | G50: -0.3723773504 | H50: 2.580875292 | I50: 0.7361659804 | J50: 0.0026249722 | K50: 0.01429850688 | L50: -0.3723773504 | M50: -2.580875292 | N50: -1.844709311 | O50: 3.849901076 | P50: -3.853472004 | Q50: -0.04536943322 | R50: -0.06478632423
A51: 0.4 | B51: 1.928241356 | C51: 9.024958733 | D51: 743.2393131 | E51: 5.49917886 | F51: 0.223750937 | G51: -0.6502351373 | H51: 2.871128673 | I51: 0.7402978453 | J51: 0.00134546166 | K51: 0.007398934319 | L51: -0.6502351373 | M51: -2.871128673 | N51: -2.130830828 | O51: 3.857535983 | P51: -3.919232613 | Q51: 0.007634907181 | R51: -0.06576060866
A52: 0.4083 | B52: 1.960009033 | C52: 8.991890025 | D52: 457.5770139 | E52: 5.524756217 | F52: 0.368531961 | G52: -0.433524842 | H52: 2.6604642 | I52: 0.7423131193 | J52: 0.002185424463 | K52: 0.01207393739 | L52: -0.433524842 | M52: -2.6604642 | N52: -1.918151081 | O52: 3.827430949 | P52: -3.984181671 | Q52: -0.03010503449 | R52: -0.06494905791
A53: 0.4167 | B53: 1.991792253 | C53: 8.957884322 | D53: 405.5251196 | E53: 5.541229848 | F53: 0.419566431 | G53: -0.3771992664 | H53: 2.608017761 | I53: 0.7436061649 | J53: 0.002465938487 | K53: 0.01366433195 | L53: -0.3771992664 | M53: -2.608017761 | N53: -1.864411596 | O53: 3.783716653 | P53: -4.048297977 | Q53: -0.04371429574 | R53: -0.06411630632
A54: 0.425 | B54: 2.023264669 | C54: 8.923750368 | D54: 833.2734659 | E54: 5.593839541 | F54: 0.2100595645 | G54: -0.6776575392 | H54: 2.920787553 | I54: 0.7477100045 | J54: 0.001200086215 | K54: 0.006713089724 | L54: -0.6776575392 | M54: -2.920787553 | N54: -2.173077548 | O54: 3.791857329 | P54: -4.112524627 | Q54: 0.00814067572 | R54: -0.06422665011
A55: 0.4333 | B55: 2.054497511 | C55: 8.889085874 | D55: 492.0198847 | E55: 5.621637592 | F55: 0.3610820331 | G55: -0.4423941209 | H55: 2.691982655 | I55: 0.7498628447 | J55: 0.002032438182 | K55: 0.01142563089 | L55: -0.4423941209 | M55: -2.691982655 | N55: -1.94211981 | O55: 3.762993025 | P55: -4.176444984 | Q55: -0.02886430373 | R55: -0.06392035674
A56: 0.4417 | B56: 2.085753411 | C56: 8.853470277 | D56: 432.9792185 | E56: 5.641151606 | F56: 0.4146066488 | G56: -0.3823637377 | H56: 2.636467052 | I56: 0.7513677715 | J56: 0.002309579668 | K56: 0.01302868906 | L56: -0.3823637377 | M56: -2.636467052 | N56: -1.885099281 | O56: 3.720940498 | P56: -4.239952034 | Q56: -0.0420525268 | R56: -0.06350704947
A57: 0.45 | B57: 2.116709875 | C57: 8.817757945 | D57: 940.3918516 | E57: 5.694187164 | F57: 0.1963298598 | G57: -0.7070136434 | H57: 2.973308857 | I57: 0.755431738 | J57: 0.0010633865 | K57: 0.00605512176 | L57: -0.7070136434 | M57: -2.973308857 | N57: -2.217877119 | O57: 3.729694508 | P57: -4.302690592 | Q57: 0.008754009872 | R57: -0.06273855814
A58: 0.4583 | B58: 2.147437523 | C58: 8.781523162 | D58: 530.7075167 | E58: 5.724030197 | F58: 0.3533869518 | G58: -0.4517494901 | H58: 2.724855239 | I58: 0.7577019162 | J58: 0.001884277062 | K58: 0.0107856588 | L58: -0.4517494901 | M58: -2.724855239 | N58: -1.967153323 | O58: 3.702126266 | P58: -4.365636587 | Q58: -0.02756824266 | R58: -0.06294599542
A59: 0.4667 | B59: 2.178195991 | C59: 8.744322974 | D59: 463.4067824 | E59: 5.746360032 | F59: 0.4094643656 | G59: -0.3877838876 | H59: 2.665962386 | I59: 0.7593928328 | J59: 0.002157931299 | K59: 0.01240025017 | L59: -0.3877838876 | M59: -2.665962386 | N59: -1.906569553 | O59: 3.66172235 | P59: -4.4285938 | Q59: -0.04040391575 | R59: -0.06295721324
A60: 0.475 | B60: 2.208666791 | C60: 8.707056839 | D60: 1068.460479 | E60: 5.799718254 | F60: 0.1825837935 | G60: -0.7385377738 | H60: 3.028758463 | I60: 0.7634068964 | J60: 0.0009359260538 | K60: 0.005428107418 | L60: -0.7385377738 | M60: -3.028758463 | N60: -2.265351567 | O60: 3.671180678 | P60: -4.489895796 | Q60: 0.009458327909 | R60: -0.06130199519
A61: 0.4833 | B61: 2.238919838 | C61: 8.669275874 | D61: 573.9414865 | E61: 5.831434999 | F61: 0.3455084704 | G61: -0.461541301 | H61: 2.758867618 | I61: 0.765775439 | J61: 0.001742337893 | K61: 0.01016033017 | L61: -0.461541301 | M61: -2.758867618 | N61: -1.993092179 | O61: 3.644945394 | P61: -4.551923464 | Q61: -0.02623528416 | R61: -0.06202766859
A62: 0.4917 | B62: 2.269211561 | C62: 8.630515015 | D62: 496.872114 | E62: 5.856359669 | F62: 0.404239362 | G62: -0.3933614002 | H62: 2.696244623 | I62: 0.7676277411 | J62: 0.002012590306 | K62: 0.0117864527 | L62: -0.3933614002 | M62: -2.696244623 | N62: -1.928616882 | O62: 3.6061575 | P62: -4.614388005 | Q62: -0.03878789367 | R62: -0.06246454038
A63: 0.5 | B63: 2.299227628 | C63: 8.591718243 | D63: 1222.474168 | E63: 5.909947118 | F63: 0.1688538992 | G63: -0.7724889062 | H63: 3.087239691 | I63: 0.7715835949 | J63: 0.0008180131951 | K63: 0.004834414725 | L63: -0.7724889062 | M63: -3.087239691 | N63: -2.315656096 | O63: 3.616393635 | P63: -4.674309791 | Q63: 0.0102361351 | R63: -0.05992178605
A64: 0.5083 | B64: 2.329037157 | C64: 8.552413793 | D64: 622.0186146 | E64: 5.943372258 | F64: 0.3375168169 | G64: -0.4717045834 | H64: 2.793803382 | I64: 0.7740329327 | J64: 0.001607668929 | K64: 0.009554974913 | L64: -0.4717045834 | M64: -2.793803382 | N64: -2.019770449 | O64: 3.591509576 | P64: -4.73547598 | Q64: -0.02488405872 | R64: -0.06116618929
A65: 0.5167 | B65: 2.358893161 | C65: 8.512114777 | D65: 533.4055691 | E65: 5.970676229 | F65: 0.3990368638 | G65: -0.3989869815 | H65: 2.727057546 | I65: 0.7760235214 | J65: 0.001874746081 | K65: 0.01119350186 | L65: -0.3989869815 | M65: -2.727057546 | N65: -1.951034024 | O65: 3.554286218 | P65: -4.797501861 | Q65: -0.03722335788 | R65: -0.0620258813
A66: 0.525 | B66: 2.388485611 | C66: 8.471809116 | D66: 1408.957924 | E66: 6.024408909 | F66: 0.1551834141 | G66: -0.8091546976 | H66: 3.148898024 | I66: 0.7799144421 | J66: 0.0007097444024 | K66: 0.004275790501 | L66: -0.8091546976 | M66: -3.148898024 | N66: -2.368983582 | O66: 3.565355404 | P66: -4.856103741 | Q66: 0.01106918603 | R66: -0.05860188007
A67: 0.5333 | B67: 2.417882735 | C67: 8.431002455 | D67: 675.2168653 | E67: 6.059384019 | F67: 0.3294899331 | G67: -0.4821578499 | H67: 2.829443281 | I67: 0.7824284772 | J67: 0.001481005661 | K67: 0.008973982035 | L67: -0.4821578499 | M67: -2.829443281 | N67: -2.047014804 | O67: 3.54182218 | P67: -4.916465228 | Q67: -0.02353322487 | R67: -0.06036148639
A68: 0.5417 | B68: 2.447333922 | C68: 8.389186394 | D68: 572.9923864 | E68: 6.088858426 | F68: 0.3939660311 | G68: -0.4045412226 | H68: 2.758148851 | I68: 0.7845358762 | J68: 0.001745223887 | K68: 0.01062642117 | L68: -0.4045412226 | M68: -2.758148851 | N68: -1.973612975 | O68: =(B68-B67)/(A68-A67) -> 3.506093678 | P68: =(C68-C67)/(A68-A67) -> -4.978102454 | Q68: -0.03572850137 | R68: -0.06163722668
A69: 0.55 | B69: 2.476533591 | C69: 8.347392178 | D69: 1636.537594 | E69: 6.142661132 | F69: 0.1416262274 | G69: -0.8488563135 | H69: 3.213925986 | I69: 0.7883565576 | J69: =1/D69 -> 0.0006110461524 | K69: =E69/D69 -> 0.00375344945 | L69: =LOG(F69) -> -0.8488563135 | M69: -3.213925986 | N69: -2.425569429 | O69: 3.518032332 | P69: -5.035447776 | Q69: 0.01193865362 | R69: -0.05734532123
A70: 0.5583 | B70: 2.505548988 | C70: 8.305103176 | D70: =((O70^2+P70^2)^(3/2))/F70 -> 733.7768883 | E70: =SQRT(O70^2+P70^2) -> 6.179035114 | F70: =ABS(O70*R70-Q70*P70) -> 0.321512573 | G70: =LOG10(F70) -> -0.492802039 | H70: =LOG10(D70) -> 2.865564029 | I70: =LOG10(E70) -> 0.7909206632 | J70: 0.00136281207 | K70: 0.008420863634 | L70: -0.492802039 | M70: =LOG(J70) -> -2.865564029 | N70: =LOG(K70) -> -2.074643365 | O70: 3.495831032 | P70: -5.095060386 | Q70: =O70-O69 -> -0.02220129937 | R70: -0.05961261002
A71: 0.5667 | B71: 2.534625675 | C71: 8.261789802 | D71: 615.5610345 | E71: 6.210478411 | F71: 0.3891383637 | G71: -0.4098959517 | H71: 2.789271121 | I71: 0.7931250564 | J71: 0.001624534277 | K71: 0.01008913505 | L71: -0.4098959517 | M71: -2.789271121 | N71: -1.996146064 | O71: 3.461510384 | P71: -5.156354134 | Q71: -0.0343206486 | R71: -0.06129374806
A72: 0.575 | B72: 2.563462662 | C72: 8.218525982 | D72: 1916.762532 | E72: 6.264283828 | F72: 0.1282466322 | G72: -0.8919540308 | H72: 3.282568311 | I72: 0.7968714269 | J72: 0.000521713036 | K72: 0.003268158534 | L72: -0.8919540308 | M72: -3.282568311 | N72: -2.485696885 | O72: 3.474335687 | P72: -5.21250836 | Q72: 0.0128253034 | R72: -0.05615422657
A73: 0.5833 | B73: 2.592126124 | C73: 8.174773146 | D73: 797.8787704 | E73: 6.301912917 | F73: 0.3136752718 | G73: -0.503519717 | H73: 2.90193691 | I73: 0.7994723976 | J73: 0.001253323233 | K73: 0.007898333871 | L73: -0.503519717 | M73: -2.90193691 | N73: -2.102464512 | O73: 3.453429198 | P73: -5.271426105 | Q73: -0.02090648878 | R73: -0.05891774506
A74: 0.5917 | B74: 2.620857594 | C74: 8.129980852 | D74: 660.9718514 | E74: 6.335131068 | F74: 0.3846660418 | G74: -0.4149161514 | H74: 2.820182965 | I74: 0.8017556044 | J74: 0.001512923732 | K74: 0.009584570136 | L74: -0.4149161514 | M74: -2.820182965 | N74: -2.01842736 | O74: 3.420413099 | P74: -5.332415951 | Q74: -0.03301609922 | R74: -0.06098984585
A75: 0.6 | B75: 2.649360813 | C75: 8.085265052 | D75: 2265.308438 | E75: 6.388878668 | F75: 0.1151188861 | G75: -0.9388534213 | H75: 3.355127343 | I75: 0.8054246405 | J75: 0.0004414409902 | K75: 0.002820312925 | L75: -0.9388534213 | M75: -3.355127343 | N75: -2.549702702 | O75: 3.434122771 | P75: -5.387445724 | Q75: 0.01370967142 | R75: -0.05502977307
A76: 0.6083 | B76: 2.6777008 | C76: 8.040065576 | D76: 867.6139266 | E76: 6.427626102 | F76: 0.306073199 | G76: -0.5141746974 | H76: 2.938326515 | I76: 0.8080506057 | J76: 0.001152586386 | K76: 0.007408394339 | L76: -0.5141746974 | M76: -2.938326515 | N76: -2.130275909 | O76: 3.414456247 | P76: -5.445719957 | Q76: -0.0196665239 | R76: -0.05827423253
A77: 0.6167 | B77: 2.70611486 | C77: 7.993811488 | D77: 709.0070228 | E77: 6.462432413 | F77: 0.3806602297 | G77: -0.4194624947 | H77: 2.850650537 | I77: 0.8103960141 | J77: 0.001410423265 | K77: 0.009114765024 | L77: -0.4194624947 | M77: -2.850650537 | N77: -2.040254523 | O77: 3.382626266 | P77: -5.506439161 | Q77: -0.03182998102 | R77: -0.06071920441
A78: 0.625 | B78: 2.734311608 | C78: 7.947660073 | D78: 2703.760413 | E78: 6.51606723 | F78: 0.1023265813 | G78: -0.9900115355 | H78: 3.431968205 | I78: 0.8139855565 | J78: 0.0003698552561 | K78: 0.002410001714 | L78: -0.9900115355 | M78: -3.431968205 | N78: -2.617982649 | O78: 3.39719851 | P78: -5.560411354 | Q78: 0.01457224426 | R78: -0.05397219302
A79: 0.6333 | B79: 2.762354818 | C79: 7.901029927 | D79: 942.9526509 | E79: 6.555802658 | F79: 0.2988049104 | G79: -0.5246122698 | H79: 2.974489886 | I79: 0.816625872 | J79: 0.001060498636 | K79: 0.006952419776 | L79: -0.5246122698 | M79: -2.974489886 | N79: -2.157864014 | O79: 3.378700012 | P79: -5.618089953 | Q79: -0.01849849844 | R79: -0.05767859873
A80: 0.6417 | B80: 2.790477379 | C80: 7.853329982 | D80: 759.363179 | E80: 6.592017346 | F80: 0.3772293626 | G80: -0.4233945102 | H80: 2.880449535 | I80: 0.8190183415 | J80: 0.001316892928 | K80: 0.008680981023 | L80: -0.4233945102 | M80: -2.880449535 | N80: -2.061431193 | O80: 3.347923898 | P80: -5.678564807 | Q80: -0.03077611339 | R80: -0.06047485378
A81: 0.65 | B81: 2.818392914 | C81: 7.805758154 | D81: 3262.289273 | E81: 6.645488669 | F81: 0.08996183336 | G81: -1.045941703 | H81: 3.513522468 | I81: 0.8225269218 | J81: 0.0003065332091 | K81: 0.002037062968 | L81: -1.045941703 | M81: -3.513522468 | N81: -2.690995546 | O81: 3.363317538 | P81: -5.731545585 | Q81: 0.01539363955 | R81: -0.0529807781
A82: 0.6583 | B82: 2.846163875 | C82: 7.757712175 | D82: 1023.708713 | E82: 6.686087384 | F82: 0.2919710187 | G82: -0.5346602548 | H82: 3.0101764 | I82: 0.8251720483 | J82: 0.0009768403716 | K82: 0.006531240085 | L82: -0.5346602548 | M82: -3.0101764 | N82: -2.185004351 | O82: 3.345898824 | P82: -5.788672177 | Q82: -0.01741871353 | R82: -0.0571265918
A83: 0.6667 | B83: 2.874018543 | C83: 7.708581235 | D83: 811.6480108 | E83: 6.723536982 | F83: 0.3744774453 | G83: -0.4265743347 | H83: 2.909367729 | I83: 0.827597798 | J83: 0.001232061173 | K83: 0.008283808858 | L83: -0.4265743347 | M83: -2.909367729 | N83: -2.081769931 | O83: 3.316031941 | P83: -5.848921414 | Q83: -0.02986688268 | R83: -0.06024923738
A84: 0.675 | B84: 2.901675693 | C84: 7.65960314 | D84: 3983.706205 | E84: 6.776797027 | F84: 0.07812429882 | G84: -1.107213868 | H84: 3.600287302 | I84: 0.8310244782 | J84: 0.0002510225274 | K84: 0.001701128717 | L84: -1.107213868 | M84: -3.600287302 | N84: -2.769262824 | O84: 3.332186727 | P84: -5.900975306 | Q84: 0.01615478528 | R84: -0.05205389196
A85: 0.6833 | B85: 2.92919637 | C85: 7.610155155 | D85: 1109.503514 | E85: 6.818139093 | F85: 0.2856727978 | G85: -0.5441311119 | H85: 3.045128682 | I85: 0.8336658568 | J85: 0.00090130404 | K85: 0.00614521631 | L85: -0.5441311119 | M85: -3.045128682 | N85: -2.211462825 | O85: 3.315744197 | P85: -5.957588531 | Q85: -0.01644252931 | R85: -0.05661322542
A86: 0.6917 | B86: 2.956804071 | C86: 7.559607123 | D86: 865.3822461 | E86: 6.856655754 | F86: 0.3725023838 | G86: -0.4288709437 | H86: 2.937207981 | I86: 0.8361123458 | J86: 0.001155558719 | K86: 0.007923268342 | L86: -0.4288709437 | M86: -2.937207981 | N86: -2.101095635 | O86: 3.286631067 | P86: -6.017622817 | Q86: -0.02911313028 | R86: -0.06003428516
A87: 0.7 | B87: 2.984222856 | C87: 7.509235985 | D87: 4929.621549 | E87: 6.909658361 | F87: 0.06692003277 | G87: -1.174443855 | H87: 3.692813579 | I87: 0.8394565748 | J87: 0.0002028553288 | K87: 0.001401661018 | L87: -1.174443855 | M87: -3.692813579 | N87: -2.853357005 | O87: 3.303468164 | P87: -6.068811808 | Q87: 0.01683709651 | R87: -0.05118899123
A88: 0.7083 | B88: 3.011512293 | C88: 7.458398945 | D88: 1199.733595 | E88: 6.951627694 | F88: 0.2800107429 | G88: -0.5528253061 | H88: 3.07908482 | I88: 0.8420865047 | J88: 0.0008335183776 | K88: 0.005794309438 | L88: -0.5528253061 | M88: -3.07908482 | N88: -2.236998316 | O88: 3.287883939 | P88: -6.124944637 | Q88: -0.01558422497 | R88: -0.05613282926
A89: 0.7167 | B89: 3.038890916 | C89: 7.406446909 | D89: 920.0080297 | E89: 6.991048485 | F89: 0.3713943773 | G89: -0.4301646756 | H89: 2.963791618 | I89: 0.8445423141 | J89: 0.001086947035 | K89: 0.007598899421 | L89: -0.4301646756 | M89: -2.963791618 | N89: -2.119249304 | O89: 3.259359884 | P89: -6.184766129 | Q89: -0.02852405472 | R89: -0.05982149155
A90: 0.725 | B90: 3.066088211 | C90: 7.354695175 | D90: 6189.691028 | E90: 7.043747874 | F90: 0.05646020311 | G90: -1.248257564 | H90: 3.791668971 | I90: 0.8478038023 | J90: 0.0001615589527 | K90: 0.00113798053 | L90: -1.248257564 | M90: -3.791668971 | N90: -2.943865168 | O90: 3.276782532 | P90: -6.235148783 | Q90: 0.01742264766 | R90: -0.05038265489
A91: 0.7333 | B91: 3.093162194 | C91: 7.302481303 | D91: 1293.546539 | E91: 7.086231337 | F91: 0.2750831066 | G91: -0.5605360798 | H91: 3.111782058 | I91: 0.8504153262 | J91: 0.0007730684361 | K91: 0.005478141777 | L91: -0.5605360798 | M91: -3.111782058 | N91: -2.261366732 | O91: 3.261925663 | P91: -6.290827889 | Q91: -0.01485686853 | R91: -0.05567910567
A92: 0.7417 | B92: 3.12032627 | C92: 7.249137692 | D92: 974.9041845 | E92: 7.126397551 | F92: 0.3712343924 | G92: -0.4303517961 | H92: 2.988961934 | I92: 0.8528700461 | J92: 0.001025741828 | K92: 0.007309844049 | L92: -0.4303517961 | M92: -2.988961934 | N92: -2.136091888 | O92: 3.233818535 | P92: -6.350429887 | Q92: -0.02810712843 | R92: -0.05960199743
A93: 0.75 | B93: 3.147315487 | C93: 7.19601719 | D93: 7894.900779 | E93: 7.178747183 | F93: 0.04685967804 | G93: -1.3292007 | H93: 3.897346676 | I93: 0.8560486589 | J93: 0.0001266640364 | K93: 0.0009092890949 | L93: -1.3292007 | M93: -3.897346676 | N93: -3.041298017 | O93: 3.251712874 | P93: -6.400060508 | Q93: 0.01789433909 | R93: -0.04963062154
A94: 0.7583 | B94: 3.174186244 | C94: 7.142438153 | D94: 1389.831137 | E94: 7.221633736 | F94: 0.2709844296 | G94: -0.5670556623 | H94: 3.142962037 | I94: 0.8586354583 | J94: 0.0007195118697 | K94: 0.005196051192 | L94: -0.5670556623 | M94: -3.142962037 | N94: -2.284326579 | O94: 3.237440676 | P94: -6.4553057 | Q94: -0.01427219739 | R94: -0.05524519222
A95: 0.7667 | B95: 3.201146655 | C95: 7.087714905 | D95: 1029.408036 | E95: 7.262390291 | F95: 0.3720927431 | G95: -0.4293488 | H95: 3.012587554 | I95: 0.8610795848 | J95: 0.0009714320899 | K95: 0.007054918978 | L95: -0.4293488 | M95: -3.012587554 | N95: -2.15150797 | O95: 3.209572646 | P95: -6.514672376 | Q95: -0.02786803001 | R95: -0.0593666755
A96: 0.775 | B96: 3.227937467 | C96: 7.033237023 | D96: 10234.3182 | E96: 7.314341853 | F96: 0.03823550645 | G96: -1.417533153 | H96: 4.010058916 | I96: 0.8641752542 | J96: 9.771046596e-05 | K96: 0.0007146877506 | L96: -1.417533153 | M96: -4.010058916 | N96: -3.145883661 | O96: 3.227808703 | P96: -6.56360021 | Q96: 0.01823605632 | R96: -0.04892783435
A97: 0.7833 | B97: 3.254613403 | C97: 6.978304104 | D97: 1487.227697 | E97: 7.357521796 | F97: 0.2678040911 | G97: -0.5721827927 | H97: 3.172377465 | I97: 0.8667315573 | J97: 0.0006723919963 | K97: 0.004947138768 | L97: -0.5721827927 | M97: -3.172377465 | N97: -2.305645907 | O97: 3.213968192 | P97: -6.61842394 | Q97: -0.01384051091 | R97: -0.05482372938
A98: 0.7917 | B98: 3.281377127 | C98: 6.922212851 | D98: 1082.84257 | E98: 7.39871673 | F98: 0.3740277971 | G98: -0.4270961206 | H98: 3.034565321 | I98: 0.8691564001 | J98: 0.0009234952779 | K98: 0.006832679963 | L98: -0.4270961206 | M98: -3.034565321 | N98: -2.165408921 | O98: 3.186157599 | P98: -6.677530158 | Q98: -0.02781059259 | R98: -0.05910621823
A99: 0.8 | B99: 3.307975227 | C99: 6.866388722 | D99: 13467.70659 | E99: 7.450219275 | F99: 0.03070531232 | G99: -1.512786481 | H99: 4.129293646 | I99: 0.8721690551 | J99: 7.425169189e-05 | K99: 0.0005531913861 | L99: -1.512786481 | M99: -4.129293646 | N99: -3.257124591 | O99: 3.20459042 | P99: -6.725798651 | Q99: 0.01843282044 | R99: -0.04826849329
A100: 0.8083 | B100: 3.334460692 | C100: 6.810113016 | D100: 1584.163109 | E100: 7.493583616 | F100: 0.265624896 | G100: -0.5757312226 | H100: 3.199799896 | I100: 0.8746895577 | J100: 0.0006312481298 | K100: 0.004730310643 | L100: -0.5757312226 | M100: -3.199799896 | N100: -2.325110338 | O100: 3.191019844 | P100: -6.780205584 | Q100: -0.01357057576 | R100: -0.0544069329
A101: 0.8167 | B101: 3.36103059 | C101: 6.752665274 | D101: 1134.546807 | E101: 7.535067716 | F101: 0.3770848298 | G101: -0.423560939 | H101: 3.054822418 | I101: 0.8770871596 | J101: 0.0008814092059 | K101: 0.006641478052 | L101: -0.423560939 | M101: -3.054822418 | N101: -2.177735258 | O101: 3.163083075 | P101: -6.839016812 | Q101: -0.02793676877 | R101: -0.05881122755
A102: 0.825 | B102: 3.387437488 | C102: 6.695505972 | D102: 17902.60016 | E102: 7.586066974 | F102: 0.02438562582 | G102: -1.612866094 | H102: 4.252916112 | I102: 0.8800166726 | J102: 5.585780787e-05 | K102: 0.0004237410715 | L102: -1.612866094 | M102: -4.252916112 | N102: -3.37289944 | O102: 3.181554004 | P102: -6.886662926 | Q102: 0.01847092863 | R102: -0.04764611413
A103: 0.8333 | B103: 3.413732589 | C103: 6.637898581 | D103: 1678.91254 | E103: 7.629506927 | F103: 0.2645217224 | G103: -0.5775386581 | H103: 3.225028073 | I103: 0.8824964717 | J103: 0.0005956236408 | K103: 0.004544314694 | L103: -0.5775386581 | M103: -3.225028073 | N103: -2.342531601 | O103: 3.168084459 | P103: -6.940649596 | Q103: -0.01346954501 | R103: -0.05398667004
A104: 0.8417 | B104: 3.440107227 | C104: 6.579105957 | D104: 1183.906661 | E104: 7.671133495 | F104: 0.3812950412 | G104: -0.4187388427 | H104: 3.073317464 | I104: 0.8848595405 | J104: 0.000844661182 | K104: 0.006479508684 | L104: -0.4187388427 | M104: -3.073317464 | N104: -2.188457924 | O104: 3.139837846 | P104: -6.999121901 | Q104: -0.02824661233 | R104: -0.05847230563
A105: 0.85 | B105: 3.466320087 | C105: 6.5206227 | D105: 23742.98648 | E105: 7.721571363 | F105: 0.01939017477 | G105: -1.712418277 | H105: 4.375535345 | I105: 0.8877056895 | J105: 4.211770078e-05 | K105: 0.0003252148322 | L105: -1.712418277 | M105: -4.375535345 | N105: -3.487829656 | O105: 3.15817593 | P105: -7.046175495 | Q105: 0.01833808318 | R105: -0.04705359372
A106: 0.8583 | B106: 3.492420541 | C106: 6.461694941 | D106: 1769.685535 | E106: 7.76497801 | F106: 0.2645602483 | G106: -0.5774754105 | H106: 3.247896101 | I106: 0.8901402302 | J106: 0.0005650721443 | K106: 0.004387772775 | L106: -0.5774754105 | M106: -3.247896101 | N106: -2.357755871 | O106: 3.144633038 | P106: -7.099730034 | Q106: -0.01354289171 | R106: -0.05355453919
A107: 0.8667 | B107: 3.518594057 | C107: 6.401569335 | D107: 1230.383292 | E107: 7.806602765 | F107: 0.3866747543 | G107: -0.4126541818 | H107: 3.090040425 | I107: 0.8924620811 | J107: 0.0008127548597 | K107: 0.006344854335 | L107: -0.4126541818 | M107: -3.090040425 | N107: -2.197578344 | O107: 3.115894761 | P107: -7.15781018 | Q107: -0.02873827708 | R107: -0.05808014581
A108: 0.875 | B108: 3.544605579 | C108: 6.341773699 | D108: 30636.77992 | E108: 7.856416994 | F108: 0.01582816112 | G108: -1.800569538 | H108: 4.486243117 | I108: 0.8952245264 | J108: 3.264050604e-05 | K108: 0.0002564374263 | L108: -1.800569538 | M108: -4.486243117 | N108: -3.59101859 | O108: 3.133918269 | P108: -7.204293461 | Q108: 0.01802350818 | R108: -0.04648328091
A109: 0.8833 | B109: 3.570502607 | C109: 6.281537317 | D109: 1854.729598 | E109: 7.899681095 | F109: 0.2657957766 | G109: -0.5754519241 | H109: 3.268280602 | I109: 0.8976095595 | J109: 0.0005391621513 | K109: 0.004259209054 | L109: -0.5754519241 | M109: -3.268280602 | N109: -2.370671043 | O109: 3.120123912 | P109: -7.257395413 | Q109: -0.01379435742 | R109: -0.05310195205
A110: 0.8917 | B110: 3.596464621 | C110: 6.220091141 | D110: 1273.53621 | E110: 7.94116222 | F110: 0.3932248048 | G110: -0.4053590945 | H110: 3.105011298 | I110: 0.8998840677 | J110: 0.0007852152078 | K110: 0.006235521342 | L110: -0.4053590945 | M110: -3.105011298 | N110: -2.20512723 | O110: 3.090715879 | P110: -7.315021036 | Q110: -0.02940803261 | R110: -0.05762562286
A111: 0.9 | B111: 3.622262962 | C111: 6.158995272 | D111: 36959.64373 | E111: 7.990286286 | F111: 0.0138025473 | G111: -1.860040756 | H111: 4.567727776 | I111: 0.90256234 | J111: 2.705653787e-05 | K111: 0.0002161894835 | L111: -1.860040756 | M111: -4.567727776 | N111: -3.665165436 | O111: 3.108233932 | P111: -7.360948088 | Q111: 0.01751805259 | R111: -0.04592705252
A112: 0.9083 | B112: 3.647943229 | C112: 6.097462655 | D112: 1932.440091 | E112: 8.033298241 | F112: 0.2682721768 | G112: -0.5714243668 | H112: 3.286106039 | I112: 0.9048938907 | J112: 0.0005174804667 | K112: 0.004157074923 | L112: -0.5714243668 | M112: -3.286106039 | N112: -2.381212148 | O112: 3.094008015 | P112: -7.413568306 | Q112: -0.01422591626 | R112: -0.05262021756
A113: 0.9167 | B113: 3.673678794 | C113: 6.034709042 | D113: 1313.039099 | E113: 8.07449655 | F113: 0.400930136 | G113: -0.3969312987 | H113: 3.118277659 | I113: 0.9071154533 | J113: 0.000761591944 | K113: 0.006149471524 | L113: -0.3969312987 | M113: -3.118277659 | N113: -2.211162205 | O113: 3.063757718 | P113: -7.470668188 | Q113: -0.0302502971 | R113: -0.05709988188
A114: 0.925 | B114: 3.699247541 | C114: 5.972325872 | D114: 39971.51665 | E114: 8.122859717 | F114: 0.0134083776 | G114: -1.872623768 | H114: 4.601750627 | I114: 0.909708953 | J114: 2.501781478e-05 | K114: 0.0002032161999 | L114: -1.872623768 | M114: -4.601750627 | N114: -3.692041674 | O114: 3.080571997 | P114: -7.516044582 | Q114: 0.01681427895 | R114: -0.04537639372
A115: 0.9333 | B115: 3.724693135 | C115: 5.909510267 | D115: 2001.462819 | E115: 8.165509681 | F115: 0.2720209589 | G115: -0.5653976327 | H115: 3.301347527 | I115: 0.911983298 | J115: 0.0004996345624 | K115: 0.004079770856 | L115: -0.5653976327 | M115: -3.301347527 | N115: -2.389364229 | O115: 3.065734242 | P115: -7.568145209 | Q115: -0.01483775476 | R115: -0.05210062703
A116: 0.9417 | B116: 3.750182739 | C116: 5.845463294 | D116: 1348.687291 | E116: 8.2062889 | F116: 0.4097596037 | G116: -0.3874708589 | H116: 3.129911265 | I116: 0.9141468021 | J116: 0.0007414617209 | K116: 0.00608464909 | L116: -0.3874708589 | M116: -3.129911265 | N116: -2.215764463 | O116: 3.034476556 | P116: -7.624639634 | Q116: -0.03125768654 | R116: -0.05649442496
A117: 0.95 | B117: 3.775500918 | C117: 5.781806758 | D117: 38170.46895 | E117: 8.25381646 | F117: 0.01473115931 | G117: -1.831763074 | H117: 4.581727496 | I117: 0.9166548072 | J117: 2.619826341e-05 | K117: 0.0002162356577 | L117: -1.831763074 | M117: -4.581727496 | N117: -3.665072688 | O117: 3.050383093 | P117: -7.669462116 | Q117: 0.01590653687 | R117: -0.04482248199
A118: 0.9583 | B118: 3.800689383 | C118: 5.717722486 | D118: 2060.775934 | E118: 8.295994587 | F118: 0.2770604952 | G118: -0.5574253939 | H118: 3.314030774 | I118: 0.91886846 | J118: 0.000485254114 | K118: 0.004025665503 | L118: -0.5574253939 | M118: -3.314030774 | N118: -2.395162314 | O118: 3.034754825 | P118: -7.720996655 | Q118: -0.01562826769 | R118: -0.05153453957
A119: 0.9667 | B119: 3.825908987 | C119: 5.652397384 | D119: 1380.396946 | E119: 8.336221729 | F119: 0.4196659977 | G119: -0.3770962169 | H119: 3.14000399 | I119: 0.9209692576 | J119: 0.000724429305 | K119: 0.006039003313 | L119: -0.3770962169 | M119: -3.14000399 | N119: -2.219034732 | O119: 3.002333745 | P119: -7.77679785 | Q119: -0.03242108028 | R119: -0.05580119483
A120: 0.975 | B120: 3.850951122 | C120: 5.587482635 | D120: 33010.20986 | E120: 8.382835407 | F120: 0.01784532788 | G120: -1.748475468 | H120: 4.518648285 | I120: 0.9233909391 | J120: 3.029365776e-05 | K120: 0.0002539467469 | L120: -1.748475468 | M120: -4.518648285 | N120: -3.595257346 | O120: 3.017124765 | P120: -7.821054124 | Q120: 0.01479102057 | R120: -0.044256274
A121: 0.9833 | B121: 3.875855527 | C121: 5.522145304 | D121: 2109.740901 | E121: 8.424432219 | F121: 0.2833954013 | G121: -0.5476072014 | H121: 3.324229123 | I121: 0.9255406404 | J121: 0.0004739918534 | K121: 0.003993112241 | L121: -0.5476072014 | M121: -3.324229123 | N121: -2.398688482 | O121: 3.000530695 | P121: -7.871967591 | Q121: -0.01659406994 | R121: -0.050913467
A122: 0.9917 | B122: 3.900776655 | C122: 5.45555867 | D122: 1408.196928 | E122: 8.463978022 | F122: 0.4305862808 | G122: -0.3659398117 | H122: 3.148663393 | I122: 0.927574527 | J122: 0.0007101279517 | K122: 0.006010507376 | L122: -0.3659398117 | M122: -3.148663393 | N122: -2.221088866 | O122: 2.966800993 | P122: -7.926980246 | Q122: -0.03372970207 | R122: -0.05501265475
A123: 1 | B123: 3.92551287 | C123: 5.389402284 | D123: 27011.45327 | E123: 8.509596533 | F123: 0.02281281912 | G123: -1.641821043 | H123: 4.431547951 | I123: 0.9299089693 | J123: 3.702133276e-05 | K123: 0.0003150366049 | L123: -1.641821043 | M123: -4.431547951 | N123: -3.501638981 | O123: 2.980266803 | P123: -7.97064884 | Q123: 0.01346581011 | R123: -0.04366859461
A124: 1.0083 | B124: 3.950101925 | C124: 5.322828997 | D124: 2148.117582 | E124: 8.550503379 | F124: 0.2910160885 | G124: -0.5360830009 | H124: 3.33205805 | I124: 0.9319916829 | J124: 0.0004655238654 | K124: 0.003980463384 | L124: -0.5360830009 | M124: -3.33205805 | N124: -2.400066367 | O124: 2.962536779 | P124: -8.020877998 | Q124: -0.01773002424 | R124: -0.05022915772
A125: 1.0167 | B125: 3.974691796 | C125: 5.254998998 | D125: 1432.215098 | E125: 8.589242802 | F125: 0.4424420453 | G125: -0.3541436087 | H125: 3.156008248 | I125: 0.9339548796 | J125: 0.0006982191442 | K125: 0.005997173759 | L125: -0.3541436087 | M125: -3.156008248 | N125: -2.222053368 | O125: 2.927365563 | P125: -8.074999862 | Q125: -0.03517121601 | R125: -0.05412186399
A126: 1.025 | B126: 3.999087956 | C126: 5.187619182 | D126: 21682.70769 | E126: 8.633782539 | F126: 0.02968177047 | G126: -1.527510198 | H126: 4.336113515 | I126: 0.9362011058 | J126: 4.611970121e-05 | K126: 0.000398187471 | L126: -1.527510198 | M126: -4.336113515 | N126: -3.399912409 | O126: 2.939296459 | P126: -8.118050089 | Q126: 0.01193089582 | R126: -0.04305022718
A127: 1.0333 | B127: 4.023326174 | C127: 5.119828735 | D127: 2176.044473 | E127: 8.67389214 | F127: 0.2998984943 | G127: -0.5230257147 | H127: 3.337667767 | I127: 0.9382140174 | J127: 0.0004595494313 | K127: 0.003986082201 | L127: -0.5230257147 | M127: -3.337667767 | N127: -2.39945375 | O127: 2.920267174 | P127: -8.167523768 | Q127: -0.01902928469 | R127: -0.04947367848
A128: 1.0417 | B128: 4.047547871 | C128: 5.050775306 | D128: 1452.661031 | E128: 8.711704879 | F128: 0.4551401808 | G128: -0.3418548223 | H128: 3.162164286 | I128: 0.9401031547 | J128: 0.00068839184 | K128: 0.005997066551 | L128: -0.3418548223 | M128: -3.162164286 | N128: -2.222061132 | O128: 2.883535338 | P128: -8.220646316 | Q128: -0.03673183645 | R128: -0.05312254815
A129: 1.05 | B129: 4.071565776 | C129: 4.982192088 | D129: 17437.52242 | E129: 8.755080703 | F129: 0.0384853714 | G129: -1.414704318 | H129: 4.241484779 | I129: 0.9422601537 | J129: 5.734759652e-05 | K129: 0.0005020828356 | L129: -1.414704318 | M129: -4.241484779 | N129: -3.299224625 | O129: 2.893723523 | P129: -8.26303832 | Q129: 0.0101881857 | R129: -0.04239200438
A130: 1.0583 | B130: 4.095413669 | C130: 4.913205162 | D130: 2193.990392 | E130: 8.794287756 | F130: 0.3100039978 | G130: -0.5086327054 | H130: 3.341234721 | I130: 0.944200672 | J130: 0.0004557905101 | K130: 0.004008352902 | L130: -0.5086327054 | M130: -3.341234721 | N130: -2.397034049 | O130: 2.873240168 | P130: -8.311677814 | Q130: -0.02048335545 | R130: -0.04863949361
A131: 1.0667 | B131: 4.119226357 | C131: 4.842950192 | D131: 1469.807195 | E131: 8.831058756 | F131: 0.4685737483 | G131: -0.3292220462 | H131: 3.167260369 | I131: 0.9460127743 | J131: 0.0006803613448 | K131: 0.006008311011 | L131: -0.3292220462 | M131: -3.167260369 | N131: -2.221247595 | O131: 2.834843717 | P131: -8.363686977 | Q131: -0.03839645103 | R131: -0.05200916367
A132: 1.075 | B132: 4.142823964 | C132: 4.773185605 | D132: 14187.72534 | E132: 8.87318488 | F132: 0.0492408815 | G132: -1.307674181 | H132: 4.151912772 | I132: 0.9480795305 | J132: 7.048346201e-05 | K132: 0.0006254127893 | L132: -1.307674181 | M132: -4.151912772 | N132: -3.203833242 | O132: =(B132-B131)/(A132-A131) -> 2.843085213 | P132: =(C132-C131)/(A132-A131) -> -8.405371876 | Q132: 0.00824149589 | R132: -0.04168489876
A133: 1.0833 | B133: 4.166238289 | C133: 4.703024946 | D133: 2202.687166 | E133: 8.911386688 | F133: 0.321279523 | G133: -0.4931169536 | H133: 3.342952821 | I133: 0.9499452892 | J133: =1/D133 -> 0.0004539909323 | K133: =E133/D133 -> 0.004045688751 | L133: =LOG(F133) -> -0.4931169536 | M133: -3.342952821 | N133: -2.393007532 | O133: 2.821003049 | P133: -8.453091417 | Q133: -0.02208216424 | R133: -0.04771954077
A134: 1.0917 | B134: 4.189597465 | C134: 4.631592452 | D134: =((O134^2+P134^2)^(3/2))/F134 -> 1483.970339 | E134: =SQRT(O134^2+P134^2) -> 8.947006645 | F134: =ABS(O134*R134-Q134*P134) -> 0.4826230492 | G134: =LOG10(F134) -> -0.3163919409 | H134: =LOG10(D134) -> 3.171425221 | I134: =LOG10(E134) -> 0.9516777599 | J134: 0.0006738679161 | K134: 0.006029100724 | L134: -0.3163919409 | M134: =LOG(J134) -> -3.171425221 | N134: =LOG(K134) -> -2.219747461 | O134: 2.780854293 | P134: -8.503868373 | Q134: =O134-O133 -> -0.04014875558 | R134: -0.0507769561
A135: 1.1 | B135: 4.212729157 | C135: 4.560670707 | D135: 11719.97605 | E135: 8.987797568 | F135: 0.06194883202 | G135: -1.207966877 | H135: 4.068926724 | I135: 0.9536532822 | J135: 8.532440647e-05 | K135: 0.0007668784929 | L135: -1.207966877 | M135: -4.068926724 | N135: -3.115273442 | O135: 2.786950817 | P135: -8.544788485 | Q135: 0.006096523985 | R135: -0.04092011214
A136: 1.1083 | B136: 4.235663191 | C136: 4.489361292 | D136: 2203.053819 | E136: 9.024894687 | F136: 0.3336578304 | G136: -0.4766986785 | H136: 3.343025107 | I136: 0.9554421428 | J136: 0.0004539153748 | K136: 0.004096538455 | L136: -0.4766986785 | M136: -3.343025107 | N136: -2.387582964 | O136: 2.763136667 | P136: -8.591495788 | Q136: -0.02381415004 | R136: -0.04670730269
A137: 1.1167 | B137: 4.25852098 | C137: 4.416777583 | D137: 1495.494409 | E137: 9.059260501 | F137: 0.4971568763 | G137: -0.3035065494 | H137: 3.174784794 | I137: 0.9570927481 | J137: 0.0006686751848 | K137: 0.00605770269 | L137: -0.3035065494 | M137: -3.174784794 | N137: -2.217692046 | O137: 2.721165267 | P137: -8.640917799 | Q137: -0.04197139977 | R137: -0.04942201142
A138: 1.125 | B138: 4.281137866 | C138: 4.344725225 | D138: 9834.277958 | E138: 9.098631984 | F138: 0.0765924248 | G138: -1.115814181 | H138: 3.992742479 | I138: 0.9589760993 | J138: 0.000101685147 | K138: 0.000925195731 | L138: -1.115814181 | M138: -3.992742479 | N138: -3.03376638 | O138: 2.724926073 | P138: -8.681006963 | Q138: 0.003760805766 | R138: -0.04008916312
A139: 1.1333 | B139: 4.303541722 | C139: 4.272294413 | D139: 2196.121697 | E139: 9.13452886 | F139: 0.3470579956 | G139: -0.4595979458 | H139: 3.341656403 | I139: 0.9606861523 | J139: 0.000455348172 | K139: 0.004159391018 | L139: -0.4595979458 | M139: -3.341656403 | N139: -2.38097025 | O139: 2.699259709 | P139: -8.726603837 | Q139: -0.02566636397 | R139: -0.04559687419
A140: 1.1417 | B140: 4.325847196 | C140: 4.198588234 | D140: 1504.735858 | E140: 9.167544031 | F140: 0.5120339331 | G140: -0.2907012569 | H140: 3.17746027 | I140: 0.9622530045 | J140: 0.0006645684653 | K140: 0.006092460667 | L140: -0.2907012569 | M140: -3.17746027 | N140: -2.215207266 | O140: 2.655413567 | P140: -8.774545137 | Q140: -0.04384614228 | R140: -0.04794130006
A141: 1.15 | B141: 4.347897451 | C141: 4.125434283 | D141: 8375.429566 | E141: 9.205414081 | F141: 0.09313713959 | G141: -1.030877104 | H141: 3.923007091 | I141: 0.9640433288 | J141: 0.000119396861 | K141: 0.001099097546 | L141: -1.030877104 | M141: -3.923007091 | N141: -2.958963762 | O141: 2.656657222 | P141: -8.813729109 | Q141: 0.001243655477 | R141: -0.03918397194
A142: 1.1583 | B142: 4.369718421 | C142: 4.051911952 | D142: 2182.967531 | E142: 9.240019652 | F142: 0.3613860703 | G142: -0.4420285914 | H142: 3.339047276 | I142: 0.9656728949 | J142: 0.0004580920174 | K142: 0.004232779243 | L142: -0.4420285914 | M142: -3.339047276 | N142: -2.373374381 | O142: 2.629032639 | P142: -8.858112133 | Q142: -0.02762458278 | R142: -0.0443830239
A143: 1.1667 | B143: 4.391417962 | C143: 3.977114615 | D143: 1512.051764 | E143: 9.271594602 | F143: 0.5271044015 | G143: -0.2781033573 | H143: 3.179566659 | I143: 0.967154434 | J143: 0.0006613530196 | K143: 0.006131797087 | L143: -0.2781033573 | M143: -3.179566659 | N143: -2.212412225 | O143: 2.583278626 | P143: -8.904444846 | Q143: -0.04575401396 | R143: -0.04633271321
A144: 1.175 | B144: 4.41284719 | C144: 3.902890688 | D144: 7230.345883 | E144: 9.307884434 | F144: 0.1115305578 | G144: -0.9526061259 | H144: 3.859159073 | I144: 0.9688509825 | J144: 0.0001383059699 | K144: 0.001287335984 | L144: -0.9526061259 | M144: -3.859159073 | N144: -2.890308091 | O144: 2.581834716 | P144: -8.942641788 | Q144: -0.001443909713 | R144: -0.03819694181
A145: 1.1833 | B145: 4.434030129 | C145: 3.828309353 | D145: 2164.658661 | E145: 9.34111269 | F145: 0.3765359186 | G145: -0.4241935892 | H145: 3.335389423 | I145: 0.9703986114 | J145: 0.0004619665992 | K145: 0.004315282062 | L145: -0.4241935892 | M145: -3.335389423 | N145: -2.364990812 | O145: 2.552161282 | P145: -8.985703038 | Q145: -0.02967343369 | R145: -0.04306125014
A146: 1.1917 | B146: 4.455067809 | C146: 3.752454849 | D146: 1517.790805 | E146: 9.371164996 | F146: 0.5422116392 | G146: -0.265831164 | H146: 3.181211917 | I146: 0.9717935845 | J146: 0.0006588523245 | K146: 0.006174213841 | L146: -0.265831164 | M146: -3.181211917 | N146: -2.209418333 | O146: 2.504485794 | P146: -9.030298129 | Q146: -0.04767548768 | R146: -0.04459509106
A147: 1.2 | B147: 4.475819441 | C147: 3.67719527 | D147: 6318.201898 | E147: 9.405799967 | F147: 0.131702408 | G147: -0.8804062845 | H147: 3.8005935 | I147: 0.9733957384 | J147: 0.0001582728783 | K147: 0.001488683033 | L147: -0.8804062845 | M147: -3.8005935 | N147: -2.827197761 | O147: 2.500196534 | P147: -9.067419165 | Q147: -0.004289260413 | R147: -0.03712103615
A148: 1.2083 | B148: 4.496307161 | C148: 3.60159018 | D148: 2142.211985 | E148: 9.437570437 | F148: 0.3923902189 | G148: -0.4062818268 | H148: 3.330862445 | I148: 0.974860206 | J148: 0.00046680721 | K148: 0.004405525925 | L148: -0.4062818268 | M148: -3.330862445 | N148: -2.356002239 | O148: 2.468400004 | P148: -9.109046995 | Q148: -0.03179652957 | R148: -0.04162783039
A149: 1.2167 | B149: 4.516625159 | C149: 3.524715268 | D149: 1522.286924 | E149: 9.466024968 | F149: 0.5571939857 | G149: -0.2539935799 | H149: 3.182496517 | I149: 0.9761676456 | J149: 0.0006569063851 | K149: 0.006218292242 | L149: -0.2539935799 | M149: -3.182496517 | N149: -2.206328871 | O149: 2.418809351 | P149: -9.151775238 | Q149: -0.04959065327 | R149: -0.04272824276
A150: 1.225 | B150: 4.536640867 | C150: 3.448457149 | D150: 5581.269938 | E150: 9.498935441 | F150: 0.1535648361 | G150: -0.8137082196 | H150: 3.746733028 | I150: 0.977674936 | J150: 0.0001791706925 | K150: 0.001701930841 | L150: -0.8137082196 | M150: -3.746733028 | N150: -2.769058092 | O150: 2.411531091 | P150: -9.187725089 | Q150: -0.007278260103 | R150: -0.03594985087
A151: 1.2333 | B151: 4.556374569 | C151: 3.371866368 | D151: 2116.566224 | E151: 9.529173602 | F151: 0.4088216207 | G151: -0.3884661444 | H151: 3.325631861 | I151: 0.979055239 | J151: 0.0004724633648 | K151: 0.004502185424 | L151: -0.3884661444 | M151: -3.325631861 | N151: -2.346576622 | O151: 2.377554478 | P151: -9.227804953 | Q151: -0.0339766133 | R151: -0.04007986403
A152: 1.2417 | B152: 4.5759136 | C152: 3.29401065 | D152: 1525.855324 | E152: 9.555962552 | F152: 0.5718866518 | G152: -0.24269004 | H152: 3.183513357 | I152: 0.9802744392 | J152: 0.0006553701285 | K152: 0.006262692405 | L152: -0.24269004 | M152: -3.183513357 | N152: -2.203238918 | O152: 2.326075082 | P152: -9.268537911 | Q152: -0.05147939601 | R152: -0.04073295784
A153: 1.25 | B153: 4.595133742 | C153: 3.21679396 | D153: 4977.998709 | E153: 9.587084688 | F153: 0.1770128978 | G153: -0.7519950883 | H153: 3.69705478 | I153: 0.9816865638 | J153: 0.0002008839412 | K153: 0.001925891357 | L153: -0.7519950883 | M153: -3.69705478 | N153: -2.715368216 | O153: 2.315679698 | P153: -9.303215592 | Q153: -0.01039538365 | R153: -0.03467768126
A154: 1.2583 | B154: 4.614053459 | C154: 3.139258424 | D154: 2088.565813 | E154: 9.615722288 | F154: 0.4256940412 | G154: -0.3709024289 | H154: 3.319848165 | I154: 0.982981912 | J154: 0.000478797457 | K154: 0.004603983379 | L154: -0.3709024289 | M154: -3.319848165 | N154: -2.336866253 | O154: 2.279483988 | P154: -9.3416309 | Q154: -0.03619570992 | R154: -0.03841530781
A155: 1.2667 | B155: 4.632753223 | C155: 3.060464392 | D155: 1528.790399 | E155: 9.6407851 | F155: 0.58612367 | G155: -0.2320107398 | H155: 3.184347947 | I155: 0.9841124023 | J155: 0.000654111905 | K155: 0.006306152308 | L155: -0.2320107398 | M155: -3.184347947 | N155: -2.200235544 | O155: 2.226162411 | P155: -9.380241909 | Q155: -0.05332157717 | R155: -0.03861100911
A156: 1.275 | B156: 4.651117293 | C156: 2.982331998 | D156: 4478.133529 | E156: 9.670061546 | F156: 0.2019252714 | G156: -0.6948093246 | H156: 3.651097039 | I156: 0.9854292382 | J156: 0.0002233073207 | K156: 0.002159395535 | L156: -0.6948093246 | M156: -3.651097039 | N156: -2.665667801 | O156: 2.212538563 | P156: -9.413541492 | Q156: -0.01362384826 | R156: -0.03329958259
A157: 1.2833 | B157: 4.66916235 | C157: 2.903895549 | D157: 2058.954125 | E157: 9.697036818 | F157: 0.4428640868 | G157: -0.3537295365 | H157: 3.31364667 | I157: 0.9866390446 | J157: 0.0004856834779 | K157: 0.004709690567 | L157: -0.3537295365 | M157: -3.31364667 | N157: -2.327007626 | O157: 2.174103277 | P157: -9.450174496 | Q157: -0.03843528532 | R157: -0.03663300388
A158: 1.2917 | B158: 4.686962001 | C158: 2.824208616 | D158: 1531.365155 | E158: 9.720320009 | F158: 0.5997398789 | G158: -0.2220370723 | H158: 3.185078761 | I158: 0.9876805629 | J158: 0.0006530121157 | K158: 0.006347486735 | L158: -0.2220370723 | M158: -3.185078761 | N158: -2.197398198 | O158: 2.119006063 | P158: -9.486539642 | Q158: -0.05509721479 | R158: -0.03636514685
A159: 1.3 | B159: 4.704409102 | C159: 2.745206302 | D159: 4059.35613 | E159: 9.747700476 | F159: 0.2281651829 | G159: -0.6417506264 | H159: 3.608457154 | I159: 0.9889021758 | J159: 0.0002463444861 | K159: 0.002401292265 | L159: -0.6417506264 | M159: -3.608457154 | N159: -2.619554978 | O159: 2.102060307 | P159: -9.518351067 | Q159: -0.01694575558 | R159: -0.03181142425
A160: 1.3083 | B160: 4.721518588 | C160: 2.665915707 | D160: 2028.373627 | E160: 9.772958253 | F160: 0.4601825811 | G160: -0.3370698244 | H160: 3.307147955 | I160: 0.9900260436 | J160: 0.0004930058184 | K160: 0.004818125282 | L160: -0.3370698244 | M160: -3.307147955 | N160: -2.317121912 | O160: 2.061383897 | P160: -9.553083767 | Q160: -0.04067641005 | R160: -0.03473270002
A161: 1.3167 | B161: 4.738357205 | C161: 2.585384211 | D161: 1533.831771 | E161: 9.794415126 | F161: 0.6125729173 | G161: -0.2128422078 | H161: 3.185777729 | I161: 0.9909785072 | J161: 0.0006519619808 | K161: 0.006385586287 | L161: -0.2128422078 | M161: -3.185777729 | N161: -2.194799222 | O161: 2.004597234 | P161: -9.587082851 | Q161: -0.05678666339 | R161: -0.03399908445
A162: 1.325 | B162: 4.754826521 | C162: 2.505560681 | D162: 3704.981117 | E162: 9.819856844 | F162: 0.2555815331 | G162: -0.5924705292 | H162: 3.568785999 | I162: 0.9921051566 | J162: 0.0002699069087 | K162: 0.002650447204 | L162: -0.5924705292 | M162: -3.568785999 | N162: -2.576680842 | O162: 1.98425499 | P162: -9.617292788 | Q162: -0.02034224392 | R162: -0.03020993655
A163: 1.3333 | B163: 4.770939768 | C163: 2.425465616 | D163: 1997.370772 | E163: 9.843348565 | F163: 0.4774961809 | G163: -0.3210300977 | H163: 3.300458691 | I163: 0.9931428643 | J163: 0.0005006581722 | K163: 0.004928152901 | L163: -0.3210300977 | M163: -3.300458691 | N163: -2.307315826 | O163: 1.941355063 | P163: -9.65000785 | Q163: -0.04289992674 | R163: -0.03271506192
A164: 1.3417 | B164: 4.786756836 | C164: 2.344140803 | D164: 1536.422924 | E164: 9.862938831 | F164: 0.6244651993 | G164: -0.2044917593 | H164: 3.186510778 | I164: 0.9940063397 | J164: 0.0006508624574 | K164: 0.006419416605 | L164: -0.2044917593 | M164: -3.186510778 | N164: -2.192504439 | O164: 1.882984272 | P164: -9.681525325 | Q164: -0.0583707907 | R164: -0.03151747561
A165: 1.35 | B165: 4.802188118 | C165: 2.263547653 | D165: 3402.36951 | E165: 9.88640687 | F165: 0.2840102154 | G165: -0.5466660388 | H165: 3.531781478 | I165: 0.9950384797 | J165: 0.0002939128149 | K165: 0.002905741673 | L165: -0.5466660388 | M165: -3.531781478 | N165: -2.536742998 | O165: 1.859190623 | P165: -9.710018075 | Q165: -0.02379364897 | R165: -0.0284927501
A166: 1.3583 | B166: 4.817245182 | C166: 2.182700675 | D166: 1966.403794 | E166: 9.908090476 | F166: 0.4946490595 | G166: -0.3057028123 | H166: 3.293672703 | I166: 0.9959899637 | J166: 0.0005085425502 | K166: 0.005038685598 | L166: -0.3057028123 | M166: -3.293672703 | N166: -2.29768274 | O166: 1.814104004 | P166: -9.740599753 | Q166: -0.04508661964 | R166: -0.03058167737
A167: 1.3667 | B167: 4.831981074 | C167: 2.10063666 | D167: 1539.353629 | E167: 9.925779788 | F167: 0.6352658468 | G167: -0.1970444926 | H167: 3.1873384 | I167: 0.9967646358 | J167: 0.0006496233102 | K167: 0.006448017922 | L167: -0.1970444926 | M167: -3.1873384 | N167: -2.190573764 | O167: 1.754272854 | P167: -9.769525636 | Q167: -0.05983115014 | R167: -0.02892588324
A168: 1.375 | B168: 4.846315117 | C168: 2.019328332 | D168: 3141.82619 | E168: 9.94724724 | F168: 0.3132756083 | G168: -0.5040734181 | H168: 3.497182156 | I168: 0.9977029125 | J168: 0.0003182862258 | K168: 0.003166071781 | L168: -0.5040734181 | M168: -3.497182156 | N168: -2.499479243 | O168: 1.726993182 | P168: -9.796184063 | Q168: -0.02727967182 | R168: -0.02665842716
A169: 1.3833 | B169: 4.860257256 | C169: 1.937784823 | D169: 1935.851993 | E169: 9.967086965 | F169: 0.5114846361 | G169: -0.2911674071 | H169: 3.28687215 | I169: 0.9985682476 | J169: 0.0005165684173 | K169: 0.005148682338 | L169: -0.2911674071 | M169: -3.28687215 | N169: -2.288303902 | O169: 1.679775797 | P169: -9.824519115 | Q169: -0.04721738493 | R169: -0.02833505242
A170: 1.3917 | B170: 4.873853712 | C170: 1.855038525 | D170: 1542.823373 | E170: 9.982846373 | F170: 0.644832553 | G170: -0.1905530462 | H170: 3.18831621 | I170: 0.9992543878 | J170: 0.0006481623351 | K170: 0.006470505017 | L170: -0.1905530462 | M170: -3.18831621 | N170: -2.189061822 | O170: 1.61862565 | P170: -9.850749856 | Q170: -0.06115014722 | R170: -0.02623074037
A171: 1.4 | B171: 4.887032834 | C171: 1.773072237 | D171: 2915.825028 | E171: 10.0022944 | F171: 0.3431922241 | G171: -0.4644625608 | H171: 3.464761459 | I171: 1.000099633 | J171: 0.0003429561069 | K171: 0.003430347946 | L171: -0.4644625608 | M171: -3.464761459 | N171: -2.464661827 | O171: 1.587846097 | P171: -9.875456341 | Q171: -0.03077955266 | R171: -0.02470648489
A172: 1.4083 | B172: 4.899802987 | C172: 1.690890327 | D172: 1906.025491 | E172: 10.02026047 | F172: 0.5278473281 | G172: -0.2774916724 | H172: 3.280128705 | I172: 1.000879011 | J172: 0.0005246519549 | K172: 0.005257149242 | L172: -0.2774916724 | M172: -3.280128705 | N172: -2.279249694 | O172: 1.538572697 | P172: -9.90143494 | Q172: -0.04927340001 | R172: -0.02597859935
A173: 1.4167 | B173: 4.912203584 | C173: 1.607521383 | D173: 1547.01838 | E173: 10.03406581 | F173: 0.6530333517 | G173: -0.1850646379 | H173: 3.189495474 | I173: 1.001476945 | J173: 0.000646404731 | K173: 0.006486067613 | L173: -0.1850646379 | M173: -3.189495474 | N173: -2.188018528 | O173: 1.476261498 | P173: -9.924874243 | Q173: -0.06231119866 | R173: -0.02343930339
A174: 1.425 | B174: 4.924172095 | C174: 1.524957037 | D174: 2718.457689 | E174: 10.05148353 | F174: 0.3735664952 | G174: -0.4276320821 | H174: 3.434322578 | I174: 1.002230165 | J174: 0.0003678556426 | K174: 0.003697494932 | L174: -0.4276320821 | M174: -3.434322578 | N174: -2.432092413 | O174: 1.44198925 | P174: -9.947511653 | Q174: -0.0342722487 | R174: -0.02263741005
A175: 1.4333 | B175: 4.935715344 | C175: 1.442197502 | D175: 1877.174752 | E175: 10.06755177 | F175: 0.5435843062 | G175: -0.2647330903 | H175: 3.273504704 | I175: 1.002923871 | J175: 0.0005327154538 | K175: 0.005363140407 | L175: -0.2647330903 | M175: -3.273504704 | N175: -2.270580833 | O175: 1.390752959 | P175: -9.97102827 | Q175: -0.05123629058 | R175: -0.02351661677
A176: 1.4417 | B176: 4.946865959 | C176: 1.358268164 | D176: 1552.113903 | E176: 10.07938304 | F176: 0.6597482697 | G176: -0.1806217401 | H176: 3.190923589 | I176: 1.00343395 | J176: 0.0006442826122 | K176: 0.006493971234 | L176: -0.1806217401 | M176: -3.190923589 | N176: -2.187489639 | O176: 1.327454076 | P176: -9.991587868 | Q176: -0.0632988826 | R176: -0.0205595981
A177: 1.45 | B177: 4.957570614 | C177: 1.275168227 | D177: 2545.036709 | E177: 10.0947673 | F177: 0.4041986749 | G177: -0.3934051146 | H177: 3.405694051 | I177: 1.004096312 | J177: 0.000392921641 | K177: 0.003966452531 | L177: -0.3934051146 | M177: -3.405694051 | N177: -2.401597739 | O177: 1.289717462 | P177: -10.01204053 | Q177: -0.03773661465 | R177: -0.02045266521
A178: 1.4583 | B178: 4.967834636 | C178: 1.191894371 | D178: 1849.499444 | E178: 10.10891865 | F178: 0.5585472265 | G178: -0.2529401004 | H178: 3.267054205 | I178: 1.004704702 | J178: 0.0005406868345 | K178: 0.005465759225 | L178: -0.2529401004 | M178: -3.267054205 | N178: -2.262349504 | O178: 1.236629168 | P178: -10.0329948 | Q178: -0.05308829378 | R178: -0.0209542618
A179: 1.4667 | B179: 4.977683888 | C179: 1.107469371 | D179: 1558.276458 | E179: 10.1187593 | F179: 0.6648708401 | G179: -0.1772627139 | H179: 3.19264451 | I179: 1.005127265 | J179: 0.0006417346516 | K179: 0.006493558473 | L179: -0.1772627139 | M179: -3.19264451 | N179: -2.187517244 | O179: 1.172530089 | P179: -10.05059515 | Q179: -0.0640990787 | R179: -0.01760035889
A180: 1.475 | B180: 4.98707433 | C180: 1.023898748 | D180: 2391.806193 | E180: 10.13211432 | F180: 0.4348848297 | G180: -0.3616257418 | H180: 3.378725986 | I180: 1.005700081 | J180: 0.0004180940758 | K180: 0.004236176975 | L180: -0.3616257418 | M180: -3.378725986 | N180: -2.373025905 | O180: 1.131378505 | P180: -10.06874984 | Q180: -0.04115158429 | R180: -0.01815468637
A181: 1.4833 | B181: 4.996009829 | C181: 0.9401762547 | D181: 1823.156409 | E181: 10.14433432 | F181: 0.5725939206 | G181: -0.2421532673 | H181: 3.260823929 | I181: 1.006223554 | J181: 0.0005484992922 | K181: 0.005564160197 | L181: -0.2421532673 | M181: -3.260823929 | N181: -2.254600375 | O181: 1.076566089 | P181: -10.08704736 | Q181: -0.05481241609 | R181: -0.01829751473
A182: 1.4917 | B182: 5.004509511 | C182: 0.8553226608 | D182: 1565.66597 | E182: 10.15217058 | F182: 0.6683094567 | G182: -0.1750223935 | H182: 3.194699112 | I182: 1.006558906 | J182: 0.0006387058411 | K182: 0.006484250648 | L182: -0.1750223935 | M182: -3.194699112 | N182: -2.188140206 | O182: 1.011866992 | P182: -10.10161832 | Q182: -0.06469909681 | R182: -0.01457096177
A183: 1.5 | B183: 5.012538688 | C183: 0.7713485297 | D183: 2255.728466 | E183: 10.16350748 | F183: 0.4654188979 | G183: -0.3321559865 | H183: 3.35328682 | I183: 1.007043611 | J183: 0.0004433157692 | K183: 0.004505643137 | L183: -0.3321559865 | M183: -3.35328682 | N183: -2.346243209 | O183: 0.9673706407 | P183: -10.11736519 | Q183: -0.04449635137 | R183: -0.01574687192
A184: 1.5083 | B184: 5.020099805 | C184: 0.6872453076 | D184: 1798.266636 | E184: 10.17378567 | F184: 0.5855900185 | G184: -0.2324063345 | H184: 3.254854087 | I184: 1.007482584 | J184: 0.0005560910602 | K184: 0.005657551258 | L184: -0.2324063345 | M184: -3.254854087 | N184: -2.247371503 | O184: 0.9109780563 | P184: -10.13291833 | Q184: -0.05639258446 | R184: -0.01555313646
A185: 1.5167 | B185: 5.027205284 | C185: 0.6020323503 | D185: 1574.437792 | E185: 10.17960584 | F185: 0.6699885509 | G185: -0.1739326187 | H185: 3.197125506 | I185: 1.007730962 | J185: 0.0006351473554 | K185: 0.006465549731 | L185: -0.1739326187 | M185: -3.197125506 | N185: -2.189394543 | O185: 0.8458902632 | P185: -10.14439968 | Q185: -0.0650877931 | R185: -0.0114813517
A186: 1.525 | B186: 5.033829843 | C186: 0.5177239944 | D186: 2134.324966 | E186: 10.18894205 | F186: 0.4955947895 | G186: -0.3048732683 | H186: 3.329260545 | I186: 1.008129092 | J186: 0.0004685322132 | K186: 0.004773847568 | L186: -0.3048732683 | M186: -3.329260545 | N186: -2.321131452 | O186: 0.7981397148 | P186: -10.15763324 | Q186: -0.04775054836 | R186: -0.01323356307
A187: 1.5333 | B187: 5.039974549 | C187: 0.433309991 | D187: 1774.921236 | E187: 10.19727134 | F187: 0.5974104866 | G187: -0.2237271583 | H187: 3.249179085 | I187: 1.008483976 | J187: 0.0005634052824 | K187: 0.00574519654 | L187: -0.2237271583 | M187: -3.249179085 | N187: -2.24069511 | O187: 0.7403259253 | P187: -10.17036186 | Q187: -0.05781378953 | R187: -0.01272861897
A188: 1.5417 | B188: 5.045645139 | C188: 0.3478088789 | D188: 1584.744612 | E188: 10.20106521 | F188: 0.6698495766 | G188: -0.1740227128 | H188: 3.199959284 | I188: 1.008645524 | J188: 0.0006310165009 | K188: 0.006437040473 | L188: -0.1740227128 | M188: -3.199959284 | N188: -2.19131376 | O188: 0.6750702527 | P188: -10.17870382 | Q188: -0.06525567261 | R188: -0.00834196487
A189: 1.55 | B189: 5.050825798 | C189: 0.263237491 | D189: 2025.556328 | E189: 10.20842377 | F189: 0.5252084987 | G189: -0.279668255 | H189: 3.306544325 | I189: 1.00895869 | J189: 0.0004936915288 | K189: 0.005039812335 | L189: -0.279668255 | M189: -3.306544325 | N189: -2.297585635 | O189: 0.6241758313 | P189: -10.18932384 | Q189: -0.0508944214 | R189: -0.01062001599
A190: 1.5583 | B190: 5.055516241 | C190: 0.1785844965 | D190: 1753.186464 | E190: 10.21479985 | F190: 0.6079410578 | G190: -0.2161385252 | H190: 3.243828109 | I190: 1.009229861 | J190: 0.0005703899845 | K190: 0.005826419525 | L190: -0.2161385252 | M190: -3.243828109 | N190: -2.234598248 | O190: 0.5651136118 | P190: -10.19915597 | Q190: -0.05906221941 | R190: -0.00983212937
A191: 1.5667 | B191: 5.059715558 | C191: 0.0928682117 | D191: 1596.738223 | E191: 10.21655801 | F191: 0.667851789 | G191: -0.1753199063 | H191: 3.203233722 | I191: 1.009304605 | J191: 0.0006262767345 | K191: 0.006398392586 | L191: -0.1753199063 | M191: -3.203233722 | N191: -2.193929116 | O191: 0.4999186345 | P191: -10.20431962 | Q191: -0.06519497731 | R191: -0.005163646721
A192: 1.575 | B192: 5.063417438 | C192: 0.008106686249 | D192: 1927.731076 | E192: 10.22196687 | F192: 0.5540602049 | G192: -0.2564430417 | H192: 3.285046449 | I192: 1.009534469 | J192: 0.0005187445553 | K192: 0.005302589657 | L192: -0.2564430417 | M192: -3.285046449 | N192: -2.27551198 | O192: 0.4460096346 | P192: -10.21223198 | Q192: -0.05390899996 | R192: -0.007912365825
A193: 1.5833 | B193: 5.066620277 | C193: -0.07671188052 | D193: 1733.107869 | E193: 10.22638753 | F193: 0.6170795377 | G193: -0.2096588545 | H193: 3.238825594 | I193: 1.009722247 | J193: 0.0005769981304 | K193: 0.005900606488 | L193: -0.2096588545 | M193: -3.238825594 | N193: -2.229103348 | O193: 0.3858842515 | P193: -10.21910443 | Q193: -0.06012538305 | R193: -0.006872447954
A194: 1.5917 | B194: 5.069316547 | C194: -0.1625688013 | D194: 1610.571188 | E194: 10.22610089 | F194: 0.6639728074 | G194: -0.1778497065 | H194: 3.206979926 | I194: 1.009710073 | J194: 0.0006208977332 | K194: 0.006349362861 | L194: -0.1778497065 | M194: -3.206979926 | N194: -2.197269853 | O194: 0.3209844927 | P194: -10.221062 | Q194: -0.06489975887 | R194: -0.00195756631
A195: 1.6 | B195: 5.071509475 | C195: -0.2474460918 | D195: 1839.435452 | E195: 10.22959211 | F195: 0.5819563339 | G195: -0.2351096007 | H195: 3.264684553 | I195: 1.009858317 | J195: 0.0005436450618 | K195: 0.005561267236 | L195: -0.2351096007 | M195: -3.264684553 | N195: -2.254826235 | O195: 0.2642082331 | P195: -10.22617958 | Q195: -0.05677625959 | R195: -0.005117582855
A196: 1.6083 | B196: 5.073196168 | C196: -0.3323554112 | D196: 1714.713657 | E196: 10.23205669 | F196: 0.6247369682 | G196: -0.2043027943 | H196: 3.234191607 | I196: 1.009962938 | J196: 0.0005831877502 | K196: 0.005967210119 | L196: -0.2043027943 | M196: -3.234191607 | N196: -2.224228669 | O196: =(B196-B195)/(A196-A195) -> 0.2032160111 | P196: =(C196-C195)/(A196-A195) -> -10.23003848 | Q196: -0.06099222197 | R196: -0.003858900872
A197: 1.6167 | B197: 5.074362508 | C197: -0.4182771095 | D197: 1626.398407 | E197: 10.22971597 | F197: 0.6582089551 | G197: -0.1816362133 | H197: 3.21122694 | I197: 1.009863576 | J197: =1/D197 -> 0.0006148554963 | K197: =E197/D197 -> 0.006289797091 | L197: =LOG(F197) -> -0.1816362133 | M197: -3.21122694 | N197: -2.201363365 | O197: 0.1388500755 | P197: -10.22877361 | Q197: -0.06436593554 | R197: 0.001264872181
A198: 1.625 | B198: 5.075021286 | C198: -0.5031945508 | D198: =((O198^2+P198^2)^(3/2))/F198 -> 1759.478984 | E198: =SQRT(O198^2+P198^2) -> 10.2313249 | F198: =ABS(O198*R198-Q198*P198) -> 0.6087115527 | G198: =LOG10(F198) -> -0.2155884557 | H198: =LOG10(D198) -> 3.245384084 | I198: =LOG10(E198) -> 1.009931876 | J198: 0.0005683500679 | K198: 0.005814974201 | L198: -0.2155884557 | M198: =LOG(J198) -> -3.245384084 | N198: =LOG(K198) -> -2.235452208 | O198: 0.07937079907 | P198: -10.23101703 | Q198: =O198-O197 -> -0.05947927648 | R198: -0.002243421334
A199: 1.6333 | B199: 5.075168342 | C199: -0.5881186429 | D199: 1698.017375 | E199: 10.23183366 | F199: 0.6308386349 | G199: -0.2000817167 | H199: 3.22994213 | I199: 1.009953471 | J199: 0.0005889221246 | K199: 0.006025753216 | L199: -0.2000817167 | M199: -3.22994213 | N199: -2.219988659 | O199: 0.01771758959 | P199: -10.23181832 | Q199: -0.06165320948 | R199: -0.0008012879339
A200: 1.6417 | B200: 5.074783003 | C200: -0.6740281829 | D200: 1644.378582 | E200: 10.22742908 | F200: 0.6505753714 | G200: -0.1867023817 | H200: 3.216001811 | I200: 1.009766477 | J200: 0.0006081324648 | K200: 0.006219631654 | L200: -0.1867023817 | M200: -3.216001811 | N200: -2.206235335 | O200: -0.04587374293 | P200: -10.2273262 | Q200: -0.06359133252 | R200: 0.004492120015
... 800 more rows

Sheet Data
A1: Human Movement | D1: Perfect Ellipse | G1: Concentric Ellipses | J1: Controlled Ellipse Feedback = 1 | M1: Concentric Ellipses w Noise | P1: Controlled Elipse Feedback = .5
A2: x | B2: y | D2: x | E2: y | G2: x | H2: y | J2: x | K2: y | M2: x | N2: y | P2: x | Q2: y
A3: 379 | B3: 541 | D3: 0 | E3: 15 | G3: 0 | H3: 1000 | J3: 0.3759993848 | K3: 12.97634414 | M3: 0.1 | N3: 1000 | P3: 0.3759993848 | Q3: 12.97634414
A4: 375 | B4: 531 | D4: 0.08299904702 | E4: 14.99948349 | G4: 8.380617759 | H4: 999.5540536 | J4: 0.1348031407 | K4: 9.886376602 | M4: 8.480617743 | N4: 999.5540536 | P4: 0.3020530714 | Q4: 9.886376602
A5: 507 | B5: 545 | D5: 0.1669922377 | E5: 14.99790871 | G5: 16.84760067 | H5: 997.3510107 | J5: 0.17968159 | K5: 9.913169446 | M5: 16.94759649 | N5: 997.3510107 | P5: 0.287287567 | Q5: 9.913169446
A6: 650 | B6: 489 | D6: 0.2499739591 | E6: 14.99531324 | G6: 25.18494668 | H6: 993.4478326 | J6: 0.2210973042 | K6: 9.908100984 | M6: 25.28492567 | N6: 993.4478326 | P6: 0.3011715381 | Q6: 9.908100984
A7: 428 | B7: 369 | D7: 0.33293846 | E7: 14.99168476 | G7: 33.47935464 | H7: 987.8360871 | J7: 0.2624424131 | K7: 9.902652233 | M7: 33.57934175 | N7: 987.8360871 | P7: 0.3289928248 | Q7: 9.902652233
A8: 391 | B8: 503 | D8: 0.4168791577 | E8: 14.98696104 | G8: 41.8155239 | H8: 980.4277788 | J8: 0.3041794306 | K8: 9.896469952 | M8: 41.91552164 | N8: 980.4277788 | P8: 0.3637905495 | Q8: 9.896469952
A9: 293 | B9: 695 | D9: 0.4997916927 | E9: 14.9812549 | G9: 49.98079185 | H9: 971.41275 | J9: 0.3453013743 | K9: 9.889635918 | M9: 50.08077928 | N9: 971.41275 | P9: 0.4016526146 | Q9: 9.889635918
A10: 647 | B10: 864 | D10: 0.5826697973 | E10: 14.9745167 | G10: 58.06085374 | H10: 960.7292506 | J10: 0.386315098 | K10: 9.882119283 | M10: 58.16074126 | N10: 960.7292506 | P10: 0.4409104436 | Q10: 9.882119283
A11: 567 | B11: 749 | D11: 0.6665055417 | E11: 14.96664702 | G11: 66.13743702 | H11: 948.2378351 | J11: 0.4277115823 | K11: 9.873857119 | M11: 66.23730268 | N11: 948.2378351 | P11: 0.4809944652 | Q11: 9.873857119
A12: 339 | B12: 570 | D12: 0.7492970727 | E12: 14.95783376 | G12: 74.00450582 | H12: 934.2581079 | J12: 0.4684851005 | K12: 9.864978381 | M12: 74.10423728 | N12: 934.2581079 | P12: 0.5211252361 | Q12: 9.864978381
A13: 500 | B13: 489 | D13: 0.8320369849 | E13: 14.94799007 | G13: 81.74543015 | H13: 918.6760431 | J13: 0.5091422128 | K13: 9.855426914 | M13: 81.84516972 | N13: 918.6760431 | P13: 0.5611691833 | Q13: 9.855426914
A14: 400 | B14: 572 | D14: 0.9157153815 | E14: 14.93697933 | G14: 89.43770586 | H14: 901.3029986 | J14: 0.5501732063 | K14: 9.845115249 | M14: 89.53764075 | N14: 901.3029986 | P14: 0.6013086829 | Q14: 9.845115249
A15: 664 | B15: 747 | D15: 0.9983341665 | E15: 14.92506447 | G15: 96.88510772 | H15: 882.583198 | J15: 0.5905745264 | K15: 9.834222565 | M15: 96.98510764 | N15: 882.583198 | P15: 0.6411339714 | Q15: 9.834222565
A16: 527 | B16: 617 | D16: 1.080884177 | E16: 14.91212142 | G16: 104.1673952 | H16: 862.3521966 | J16: 0.6308521183 | K16: 9.822667378 | M16: 104.2671555 | N16: 862.3521966 | P16: 0.6806924655 | Q16: 9.822667378
A17: 278 | B17: 384 | D17: 1.164352929 | E17: 14.89797651 | G17: 111.3566387 | H17: 840.3751777 | J17: 0.6714952668 | K17: 9.810337709 | M17: 111.4566232 | N17: 840.3751777 | P17: 0.7202548638 | Q17: 9.810337709
A18: 373 | B18: 365 | D18: 1.246747334 | E18: 14.88296749 | G18: 118.2694546 | H18: 817.2138958 | J18: 0.7115032135 | K18: 9.797462824 | M18: 118.3691986 | N18: 817.2138958 | P18: 0.759456216 | Q18: 9.797462824
A19: 628 | B19: 365 | D19: 1.329055851 | E19: 14.86693319 | G19: 124.9807627 | H19: 792.6561318 | J19: 0.7513809683 | K19: 9.783935935 | M19: 125.0806718 | N19: 792.6561318 | P19: 0.7983655836 | Q19: 9.783935935
A20: 600 | B20: 584 | D20: 1.412262794 | E20: 14.84966294 | G20: 131.5560991 | H20: 766.4246365 | J20: 0.7916165032 | K20: 9.769620598 | M20: 131.6560978 | N20: 766.4246365 | P20: 0.8372637503 | Q20: 9.769620598
A21: 606 | B21: 550 | D21: 1.494381325 | E21: 14.83156914 | G21: 137.827752 | H21: 739.1897733 | J21: 0.8312124755 | K21: 9.754796 | M21: 137.927569 | N21: 739.1897733 | P21: 0.875792547 | Q21: 9.754796
A22: 369 | B22: 482 | D22: 1.576396908 | E22: 14.8124536 | G22: 143.8646482 | H22: 710.6949382 | J22: 0.8706726383 | K22: 9.739330092 | M22: 143.9646107 | N22: 710.6949382 | P22: 0.914023884 | Q22: 9.739330092
A23: 324 | B23: 785 | D23: 1.65929004 | E23: 14.79206882 | G23: 149.7247823 | H23: 680.6248541 | J23: 0.9104833385 | K23: 9.723062027 | M23: 149.824546 | N23: 680.6248541 | P23: 0.952239258 | Q23: 9.723062027
A24: 375 | B24: 529 | D24: 1.741081376 | E24: 14.77090155 | G24: 155.2587004 | H24: 649.7478765 | J24: 0.9496512651 | K24: 9.706320711 | M24: 155.3584889 | N24: 649.7478765 | P24: 0.9900829909 | Q24: 9.706320711
A25: 375 | B25: 531 | D25: 1.822752769 | E25: 14.74871672 | G25: 160.5282762 | H25: 617.7670988 | J25: 0.9886785903 | K25: 9.688948897 | M25: 160.6278911 | N25: 617.7670988 | P25: 1.027627576 | Q25: 9.688948897
A26: 507 | B26: 545 | D26: 1.905280285 | E26: 14.72523013 | G26: 165.5830734 | H26: 584.3342135 | J26: 1.028049723 | K26: 9.67076141 | M26: 165.6828056 | N26: 584.3342135 | P26: 1.06515395 | Q26: 9.67076141
A27: 650 | B27: 489 | D27: 1.986693308 | E27: 14.70100262 | G27: 170.294197 | H27: 550.3034223 | J27: 1.066775995 | K27: 9.652136651 | M27: 170.3930034 | N27: 550.3034223 | P27: 1.102308601 | Q27: 9.652136651
A28: 428 | B28: 369 | D28: 2.067969469 | E28: 14.67576236 | G28: 174.7155174 | H28: 515.3422271 | J28: 1.105357672 | K28: 9.632892244 | M28: 174.8136032 | N28: 515.3422271 | P28: 1.139164279 | Q28: 9.632892244
A29: 391 | B29: 503 | D29: 2.150079791 | E29: 14.64918866 | G29: 178.8874102 | H29: 479.0748036 | J29: 1.144276912 | K29: 9.612818784 | M29: 178.9858468 | N29: 479.0748036 | P29: 1.176001038 | Q29: 9.612818784
A30: 293 | B30: 695 | D30: 2.231063621 | E30: 14.62191605 | G30: 182.7035188 | H30: 442.4277139 | J30: 1.182550294 | K30: 9.592343906 | M30: 182.803154 | N30: 442.4277139 | P30: 1.212467666 | Q30: 9.592343906
A31: 647 | B31: 863 | D31: 2.311893755 | E31: 14.59363614 | G31: 186.208886 | H31: 405.038135 | J31: 1.220675854 | K31: 9.571260201 | M31: 186.3065639 | N31: 405.038135 | P31: 1.248637074 | Q31: 9.571260201
A32: 567 | B32: 749 | D32: 2.393535567 | E32: 14.56399192 | G32: 189.434084 | H32: 366.5086682 | J32: 1.259133181 | K32: 9.549334142 | M32: 189.5340313 | N32: 366.5086682 | P32: 1.284788214 | Q32: 9.549334142
A33: 339 | B33: 570 | D33: 2.474039593 | E33: 14.53369125 | G33: 192.2969239 | H33: 327.8236215 | J33: 1.296944704 | K33: 9.527042309 | M33: 192.3968957 | N33: 327.8236215 | P33: 1.320572363 | Q33: 9.527042309
A34: 500 | B34: 489 | D34: 2.554373182 | E34: 14.50238936 | G34: 194.8329329 | H34: 288.5955866 | J34: 1.334605903 | K34: 9.504152372 | M34: 194.9314836 | N34: 288.5955866 | P34: 1.356062512 | Q34: 9.504152372
A35: 400 | B35: 571 | D35: 2.635495462 | E35: 14.46969316 | G35: 197.0624188 | H35: 248.41187 | J35: 1.372593484 | K35: 9.480406807 | M35: 197.1610657 | N35: 248.41187 | P35: 1.391536309 | Q35: 9.480406807
A36: 664 | B36: 747 | D36: 2.71546937 | E36: 14.43638337 | G36: 198.9286114 | H36: 208.2990094 | J36: 1.409936319 | K36: 9.456330823 | M36: 199.0261736 | N36: 208.2990094 | P36: 1.426647703 | Q36: 9.456330823
A37: 527 | B37: 617 | D37: 2.79525621 | E37: 14.40207906 | G37: 200.4569839 | H37: 167.8511349 | J37: 1.447127006 | K37: 9.431667294 | M37: 200.5532885 | N37: 167.8511349 | P37: 1.461469691 | Q37: 9.431667294
A38: 278 | B38: 384 | D38: 2.875808257 | E38: 14.36635131 | G38: 201.6572781 | H38: 126.6467759 | J38: 1.484639053 | K38: 9.406134842 | M38: 201.7566541 | N38: 126.6467759 | P38: 1.496278407 | Q38: 9.406134842
A39: 373 | B39: 365 | D39: 2.955202067 | E39: 14.33005322 | G39: 202.4989973 | H39: 85.73852514 | J39: 1.521508365 | K39: 9.38030696 | M39: 202.5963334 | N39: 85.73852514 | P39: 1.530730659 | Q39: 9.38030696
A40: 628 | B40: 365 | D40: 3.034392293 | E40: 14.29276794 | G40: 202.9971787 | H40: 44.70846248 | J40: 1.55822433 | K40: 9.353901869 | M40: 203.0963141 | N40: 44.70846248 | P40: 1.564899363 | Q40: 9.353901869
A41: 600 | B41: 584 | D41: 3.114323766 | E41: 14.25403096 | G41: 203.1508619 | H41: 3.132995173 | J41: 1.595256947 | K41: 9.326614498 | M41: 203.2506124 | N41: 3.132995173 | P41: 1.599058936 | Q41: 9.326614498
A42: 606 | B42: 550 | D42: 3.193087859 | E42: 14.21476725 | G42: 202.9562681 | H42: -37.92581018 | J42: 1.631649734 | K42: 9.29906625 | M42: 203.0515738 | N42: -37.92581018 | P42: 1.632869217 | Q42: 9.29906625
A43: 369 | B43: 482 | D43: 3.27163198 | E43: 14.1745243 | G43: 202.4177796 | H43: -78.89132464 | J43: 1.667888545 | K43: 9.270950851 | M43: 202.5159749 | N43: -78.89132464 | P43: 1.666402964 | Q43: 9.270950851
A44: 324 | B44: 785 | D44: 3.350892924 | E44: 14.1328023 | G44: 201.5237644 | H44: -120.182575 | J44: 1.704439553 | K44: 9.241939715 | M44: 201.6189569 | N44: -120.182575 | P44: 1.69993266 | Q44: 9.241939715
A45: 375 | B45: 529 | D45: 3.428978075 | E45: 14.09059752 | G45: 200.2971894 | H45: -160.7447501 | J45: 1.74035447 | K45: 9.212701751 | M45: 200.3960594 | N45: -160.7447501 | P45: 1.73312135 | Q45: 9.212701751
A46: 375 | B46: 531 | D46: 3.506827004 | E46: 14.04742204 | G46: 198.7317291 | H46: -200.9999873 | J46: 1.77611529 | K46: 9.182906372 | M46: 198.8317028 | N46: -200.9999873 | P46: 1.766041546 | Q46: 9.182906372
A47: 507 | B47: 545 | D47: 3.585367883 | E47: 14.0027411 | G47: 196.805277 | H47: -241.3561305 | J47: 1.812184048 | K47: 9.152201666 | M47: 196.9050594 | N47: -241.3561305 | P47: 1.798963587 | Q47: 9.152201666
A48: 649 | B48: 489 | D48: 3.662725291 | E48: 13.95762162 | G48: 194.5671563 | H48: -280.7822403 | J48: 1.847621218 | K48: 9.12130362 | M48: 194.6654297 | N48: -280.7822403 | P48: 1.831553893 | Q48: 9.12130362
A49: 428 | B49: 368 | D49: 3.739830375 | E49: 13.9115406 | G49: 192.0004479 | H49: -319.6925547 | J49: 1.882904612 | K49: 9.089857529 | M49: 192.0942441 | N49: -319.6925547 | P49: 1.863884638 | Q49: 9.089857529
A50: 391 | B50: 503 | D50: 3.817602104 | E50: 13.86392865 | G50: 189.0729315 | H50: -358.4772928 | J50: 1.918491814 | K50: 9.057488364 | M50: 189.1677774 | N50: -358.4772928 | P50: 1.896223807 | Q50: 9.057488364
A51: 293 | B51: 695 | D51: 3.894183423 | E51: 13.81592266 | G51: 185.8594854 | H51: -396.1456301 | J51: 1.953452628 | K51: 9.024958733 | M51: 185.9564721 | N51: -396.1456301 | P51: 1.928241356 | Q51: 9.024958733
A52: 647 | B52: 863 | D52: 3.970496473 | E52: 13.7669649 | G52: 182.3328767 | H52: -433.0973634 | J52: 1.988260361 | K52: 8.991890025 | M52: 182.4283512 | N52: -433.0973634 | P52: 1.960009033 | Q52: 8.991890025
A53: 567 | B53: 749 | D53: 4.047450448 | E53: 13.71645169 | G53: 178.4512895 | H53: -469.6989195 | J53: 2.023367835 | K53: 8.957884322 | M53: 178.5495936 | N53: -469.6989195 | P53: 1.991792253 | Q53: 8.957884322
A54: 339 | B54: 570 | D54: 4.123207817 | E54: 13.6655892 | G54: 174.313958 | H54: -505.0152065 | J54: 2.057854741 | K54: 8.923750368 | M54: 174.4139535 | N54: -505.0152065 | P54: 2.023264669 | Q54: 8.923750368
A55: 500 | B55: 489 | D55: 4.198681141 | E55: 13.61378529 | G55: 169.8837758 | H55: -539.4252633 | J55: 2.092189561 | K55: 8.889085874 | M55: 169.9837685 | N55: -539.4252633 | P55: 2.054497511 | Q55: 8.889085874
A56: 400 | B56: 571 | D56: 4.274769267 | E56: 13.56040239 | G56: 165.1099996 | H56: -573.2659284 | J56: 2.126820052 | K56: 8.853470277 | M56: 165.207381 | N56: -573.2659284 | P56: 2.085753411 | Q56: 8.853470277
A57: 664 | B57: 747 | D57: 4.349655341 | E57: 13.50671519 | G57: 160.1146394 | H57: -605.6725904 | J57: 2.160836339 | K57: 8.817757945 | M57: 160.2113739 | N57: -605.6725904 | P57: 2.116709875 | Q57: 8.817757945
A58: 527 | B58: 617 | D58: 4.424241769 | E58: 13.45209752 | G58: 154.8513103 | H58: -636.9975373 | J58: 2.194701763 | K58: 8.781523162 | M58: 154.9479124 | N58: -636.9975373 | P58: 2.147437523 | Q58: 8.781523162
A59: 278 | B59: 384 | D59: 4.499416494 | E59: 13.39587829 | G59: 149.2611491 | H59: -667.5426852 | J59: 2.228858711 | K59: 8.744322974 | M59: 149.3573469 | N59: -667.5426852 | P59: 2.178195991 | Q59: 8.744322974
A60: 373 | B60: 364 | D60: 4.573384472 | E60: 13.33939993 | G60: 143.4870064 | H60: -696.5275511 | J60: 2.262408286 | K60: 8.707056839 | M60: 143.5857606 | N60: -696.5275511 | P60: 2.208666791 | Q60: 8.707056839
A61: 628 | B61: 365 | D61: 4.647037391 | E61: 13.28200262 | G61: 137.4739582 | H61: -724.2720969 | J61: 2.295808375 | K61: 8.669275874 | M61: 137.5739371 | N61: -724.2720969 | P61: 2.238919838 | Q61: 8.669275874
A62: 600 | B62: 584 | D62: 4.721251733 | E62: 13.2229822 | G62: 131.1559552 | H62: -751.0385268 | J62: 2.32949569 | K62: 8.630515015 | M62: 131.2557796 | N62: -751.0385268 | P62: 2.269211561 | Q62: 8.630515015
A63: 605 | B63: 549 | D63: 4.794255386 | E63: 13.16374797 | G63: 124.6944288 | H63: -776.1428215 | J63: 2.362582853 | K63: 8.591718243 | M63: 124.793372 | N63: -776.1428215 | P63: 2.299227628 | Q63: 8.591718243
A64: 368 | B64: 482 | D64: 4.866928765 | E64: 13.1036069 | G64: 118.0267883 | H64: -799.8675459 | J64: 2.395521982 | K64: 8.552413793 | M64: 118.1239058 | N64: -799.8675459 | P64: 2.329037157 | Q64: 8.552413793
A65: 324 | B65: 785 | D65: 4.940136342 | E65: 13.04182217 | G65: 111.0808447 | H65: -822.4310227 | J65: 2.42874382 | K65: 8.512114777 | M65: 111.1806498 | N65: -822.4310227 | P65: 2.358893161 | Q65: 8.512114777
A66: 375 | B66: 528 | D66: 5.012130047 | E66: 12.9798691 | G66: 104.0340597 | H66: -843.2565261 | J66: 2.461373036 | K66: 8.471809116 | M66: 104.1328724 | N66: -843.2565261 | P66: 2.388485611 | Q66: 8.471809116
A67: 375 | B67: 531 | D67: 5.083778467 | E67: 12.91702185 | G67: 96.81716828 | H67: -862.5847369 | J67: 2.493855672 | K67: 8.431002455 | M67: 96.90540103 | N67: -862.5847369 | P67: 2.417882735 | Q67: 8.431002455
A68: 507 | B68: 545 | D68: 5.155933528 | E68: 12.85251143 | G68: 89.35298411 | H68: -880.586611 | J68: 2.526616207 | K68: 8.389186394 | M68: 89.45090127 | N68: -880.586611 | P68: 2.447333922 | Q68: 8.389186394
A69: 649 | B69: 489 | D69: 5.226872289 | E69: 12.78787823 | G69: 81.83219841 | H69: -896.8018722 | J69: 2.558791879 | K69: 8.347392178 | M69: 81.91761189 | N69: -896.8018722 | P69: 2.476533591 | Q69: 8.347392178
A70: 428 | B70: 368 | D70: 5.297450974 | E70: 12.72236409 | G70: 74.17996845 | H70: -911.425483 | J70: 2.590822353 | K70: 8.305103176 | M70: 74.27959245 | N70: -911.425483 | P70: 2.505548988 | Q70: 8.305103176
A71: 391 | B71: 503 | D71: 5.368508423 | E71: 12.65516829 | G71: 66.31533053 | H71: -924.5782874 | J71: 2.623125553 | K71: 8.261789802 | M71: 66.40595982 | N71: -924.5782874 | P71: 2.534625675 | Q71: 8.261789802
A72: 293 | B72: 695 | D72: 5.438347907 | E72: 12.58789536 | G72: 58.43919867 | H72: -935.9237968 | J72: 2.654851802 | K72: 8.218525982 | M72: 58.53791602 | N72: -935.9237968 | P72: 2.563462662 | Q72: 8.218525982
A73: 647 | B73: 863 | D73: 5.507812745 | E73: 12.51975526 | G73: 50.47233587 | H73: -945.6081351 | J73: 2.686434088 | K73: 8.174773146 | M73: 50.56557173 | N73: -945.6081351 | P73: 2.592126124 | Q73: 8.174773146
A74: 567 | B74: 749 | D74: 5.577728174 | E74: 12.44991608 | G74: 42.33128003 | H74: -953.7000707 | J74: 2.718283496 | K74: 8.129980852 | M74: 42.42690553 | N74: -953.7000707 | P74: 2.620857594 | Q74: 8.129980852
A75: 339 | B75: 570 | D75: 5.646424734 | E75: 12.38004546 | G75: 34.22400161 | H75: -959.9923094 | J75: 2.74956394 | K75: 8.085265052 | M75: 34.31873268 | N75: -959.9923094 | P75: 2.649360813 | Q75: 8.085265052
A76: 500 | B76: 489 | D76: 5.714732313 | E76: 12.30932199 | G76: 26.06812139 | H76: -964.5797785 | J76: 2.78070144 | K76: 8.040065576 | M76: 26.15918814 | N76: -964.5797785 | P76: 2.6777008 | Q76: 8.040065576
A77: 399 | B77: 571 | D77: 5.783462028 | E77: 12.23688307 | G77: 17.77899687 | H77: -967.4780193 | J77: 2.812099961 | K77: 7.993811488 | M77: 17.86082923 | N77: -967.4780193 | P77: 2.70611486 | Q77: 7.993811488
A78: 663 | B78: 747 | D78: 5.850972729 | E78: 12.16445844 | G78: 9.568378446 | H78: -968.6123231 | J78: 2.842937509 | K78: 7.947660073 | M78: 9.663532015 | N78: -968.6123231 | P78: 2.734311608 | Q78: 7.947660073
A79: 527 | B79: 617 | D79: 5.91808036 | E79: 12.09119579 | G79: 1.352045766 | H79: -968.0248611 | J79: 2.873632845 | K79: 7.901029927 | M79: 1.446866235 | N79: -968.0248611 | P79: 2.762354818 | Q79: 7.901029927
A80: 278 | B80: 384 | D80: 5.985581405 | E80: 12.01620242 | G80: -6.954487618 | H80: -965.6776271 | J80: 2.904582541 | K80: 7.853329982 | M80: -6.854529358 | N80: -965.6776271 | P80: 2.790477379 | Q80: 7.853329982
A81: 373 | B81: 365 | D81: 6.051864057 | E81: 11.94126902 | G81: -15.13902691 | H81: -961.6298196 | J81: 2.934979188 | K81: 7.805758154 | M81: -15.03982081 | N81: -961.6298196 | P81: 2.818392914 | Q81: 7.805758154
A82: 628 | B82: 365 | D82: 6.117729799 | E82: 11.865513 | G82: -23.28630373 | H82: -955.8701178 | J82: 2.965234004 | K82: 7.757712175 | M82: -23.18975673 | N82: -955.8701178 | P82: 2.846163875 | Q82: 7.757712175
A83: 600 | B83: 584 | D83: 6.18395999 | E83: 11.78801203 | G83: -31.47931451 | H83: -948.3074828 | J83: 2.995735902 | K83: 7.708581235 | M83: -31.38941317 | N83: -948.3074828 | P83: 2.874018543 | Q83: 7.708581235
A84: 605 | B84: 550 | D84: 6.248973167 | E84: 11.7106167 | G84: -39.50876248 | H84: -939.1342529 | J84: 3.02569254 | K84: 7.65960314 | M84: -39.40927972 | N84: -939.1342529 | P84: 2.901675693 | Q84: 7.65960314
A85: 368 | B85: 482 | D85: 6.313555856 | E85: 11.63241464 | G85: -47.45855273 | H85: -928.2857135 | J85: 3.055507319 | K85: 7.610155155 | M85: -47.35881427 | N85: -928.2857135 | P85: 2.92919637 | Q85: 7.610155155
A86: 324 | B86: 785 | D86: 6.3784738 | E86: 11.55245451 | G86: -55.40888093 | H86: -915.6191359 | J86: 3.085561226 | K86: 7.559607123 | M86: -55.31040884 | N86: -915.6191359 | P86: 2.956804071 | Q86: 7.559607123
A87: 375 | B87: 529 | D87: 6.442176872 | E87: 11.47264563 | G87: -63.15664554 | H87: -901.4571527 | J87: 3.115077468 | K87: 7.509235985 | M87: -63.06332395 | N87: -901.4571527 | P87: 2.984222856 | Q87: 7.509235985
A88: 375 | B88: 531 | D88: 6.505436146 | E88: 11.3920464 | G88: -70.78360021 | H88: -885.6825876 | J88: 3.144451355 | K88: 7.458398945 | M88: -70.6880934 | N88: -885.6825876 | P88: 3.011512293 | Q88: 7.458398945
A89: 507 | B89: 545 | D89: 6.569001272 | E89: 11.30967709 | G89: -78.36587282 | H89: -868.1031713 | J89: 3.174055697 | K89: 7.406446909 | M89: -78.29007823 | N89: -868.1031713 | P89: 3.038890916 | Q89: 7.406446909
A90: 649 | B90: 489 | D90: 6.631354427 | E90: 11.22750453 | G90: -85.70975761 | H90: -849.1669519 | J90: 3.203129712 | K90: 7.354695175 | M90: -85.62820743 | N90: -849.1669519 | P90: 3.066088211 | Q90: 7.354695175
A91: 428 | B91: 369 | D91: 6.69325075 | E91: 11.14455851 | G91: -92.89356543 | H91: -828.706042 | J91: 3.232060361 | K91: 7.302481303 | M91: -92.79418323 | N91: -828.706042 | P91: 3.093162194 | Q91: 7.302481303
A92: 391 | B92: 503 | D92: 6.755423332 | E92: 11.05983149 | G92: -99.98815283 | H92: -806.4815538 | J92: 3.261212024 | K92: 7.249137692 | M92: -99.89297613 | N92: -806.4815538 | P92: 3.12032627 | Q92: 7.249137692
A93: 292 | B93: 695 | D93: 6.8163876 | E93: 10.9753466 | G93: -106.8122637 | H93: -783.0601157 | J93: 3.289840394 | K93: 7.19601719 | M93: -106.7203086 | N93: -783.0601157 | P93: 3.147315487 | Q93: 7.19601719
A94: 646 | B94: 863 | D94: 6.87688229 | E94: 10.89010562 | G94: -113.4395286 | H94: -758.2256707 | J94: 3.318323824 | K94: 7.142438153 | M94: -113.3656043 | N94: -758.2256707 | P94: 3.174186244 | Q94: 7.142438153
A95: 567 | B95: 749 | D95: 6.937623473 | E95: 10.80307385 | G95: -119.9344114 | H95: -731.6963624 | J95: 3.347018025 | K95: 7.087714905 | M95: -119.8402083 | N95: -731.6963624 | P95: 3.201146655 | Q95: 7.087714905
A96: 339 | B96: 570 | D96: 6.997160753 | E96: 10.71632944 | G96: -126.1309652 | H96: -704.1487133 | J96: 3.375195614 | K96: 7.033237023 | M96: -126.0525001 | N96: -704.1487133 | P96: 3.227937467 | Q96: 7.033237023
A97: 500 | B97: 489 | D97: 7.056216003 | E97: 10.62884678 | G97: -132.0969757 | H97: -675.3217905 | J97: 3.403226089 | K97: 6.978304104 | M97: -132.0195598 | N97: -675.3217905 | P97: 3.254613403 | Q97: 6.978304104
A98: 399 | B98: 572 | D98: 7.115487824 | E98: 10.53956464 | G98: -137.8894925 | H98: -644.8950892 | J98: 3.431456254 | K98: 6.922212851 | M98: -137.7902538 | N98: -644.8950892 | P98: 3.281377127 | Q98: 6.922212851
A99: 663 | B99: 747 | D99: 7.173560909 | E99: 10.45061492 | G99: -143.3604991 | H99: -613.644625 | J99: 3.4591761 | K99: 6.866388722 | M99: -143.2720973 | N99: -613.644625 | P99: 3.307975227 | Q99: 6.866388722
A100: 527 | B100: 617 | D100: 7.23113981 | E100: 10.36094525 | G100: -148.5708624 | H100: -581.2685829 | J100: 3.486746022 | K100: 6.810113016 | M100: -148.4730063 | N100: -581.2685829 | P100: 3.334460692 | Q100: 6.810113016
A101: 278 | B101: 384 | D101: 7.288905227 | E101: 10.26946855 | G101: -153.5693122 | H101: -547.4127331 | J101: 3.514503697 | K101: 6.752665274 | M101: -153.4770242 | N101: -547.4127331 | P101: 3.36103059 | Q101: 6.752665274
A102: 373 | B102: 365 | D102: 7.345477822 | E102: 10.1783691 | G102: -158.2281029 | H102: -512.9406309 | J102: 3.541756918 | K102: 6.695505972 | M102: -158.1295241 | N102: -512.9406309 | P102: 3.387437488 | Q102: 6.695505972
A103: 628 | B103: 365 | D103: 7.40154439 | E103: 10.08656847 | G103: -162.6002179 | H103: -477.5142109 | J103: 3.568856748 | K103: 6.637898581 | M103: -162.5033396 | N103: -477.5142109 | P103: 3.413732589 | Q103: 6.637898581
A104: 600 | B104: 584 | D104: 7.457767302 | E104: 9.992954372 | G104: -166.7252907 | H104: -440.7509678 | J104: 3.596131516 | K104: 6.579105957 | M104: -166.6417341 | N104: -440.7509678 | P104: 3.440107227 | Q104: 6.579105957
A105: 605 | B105: 550 | D105: 7.512804051 | E105: 9.89976214 | G105: -170.4978716 | H105: -403.5886774 | J105: 3.622907244 | K105: 6.5206227 | M105: -170.3993674 | N105: -403.5886774 | P105: 3.466320087 | Q105: 6.5206227
A106: 368 | B106: 482 | D106: 7.567323247 | E106: 9.805887917 | G106: -173.9622177 | H106: -365.658221 | J106: 3.649525438 | K106: 6.461694941 | M106: -173.8624307 | N106: -365.658221 | P106: 3.492420541 | Q106: 6.461694941
A107: 324 | B107: 785 | D107: 7.621968515 | E107: 9.710194925 | G107: -177.1482325 | H107: -326.5547088 | J107: 3.676304866 | K107: 6.401569335 | M107: -177.0520649 | N107: -326.5547088 | P107: 3.518594057 | Q107: 6.401569335
A108: 375 | B108: 529 | D108: 7.675435022 | E108: 9.614968148 | G108: -179.9744385 | H108: -287.2756592 | J108: 3.702590198 | K108: 6.341773699 | M108: -179.8744385 | N108: -287.2756592 | P108: 3.544605579 | Q108: 6.341773699
A109: 375 | B109: 531 | D109: 7.728372772 | E109: 9.519078999 | G109: -182.4756605 | H109: -247.4265826 | J109: 3.728713165 | K109: 6.281537317 | M109: -182.3807501 | N109: -247.4265826 | P109: 3.570502607 | Q109: 6.281537317
A110: 507 | B110: 545 | D110: 7.781406246 | E110: 9.421366923 | G110: -184.6715896 | H110: -206.5864445 | J110: 3.754982773 | K110: 6.220091141 | M110: -184.5783902 | N110: -206.5864445 | P110: 3.596464621 | Q110: 6.220091141
A111: 649 | B111: 489 | D111: 7.833269096 | E111: 9.324165114 | G111: -186.5060235 | H111: -165.7970964 | J111: 3.780762745 | K111: 6.158995272 | M111: -186.4173405 | N111: -165.7970964 | P111: 3.622262962 | Q111: 6.158995272
A112: 428 | B112: 369 | D112: 7.884592316 | E112: 9.226320967 | G112: -188.0037955 | H112: -124.6447551 | J112: 3.806374829 | K112: 6.097462655 | M112: -187.904415 | N112: -124.6447551 | P112: 3.647943229 | Q112: 6.097462655
A113: 391 | B113: 503 | D113: 7.935980851 | E113: 9.126650872 | G113: -189.1740616 | H113: -82.69873391 | J113: 3.832118076 | K113: 6.034709042 | M113: -189.082798 | N113: -82.69873391 | P113: 3.673678794 | Q113: 6.034709042
A114: 292 | B114: 695 | D114: 7.986207632 | E114: 9.02753478 | G114: -189.9868025 | H114: -41.02911539 | J114: 3.85737566 | K114: 5.972325872 | M114: -189.8954128 | N114: -41.02911539 | P114: 3.699247541 | Q114: 5.972325872
A115: 646 | B115: 864 | D115: 8.035884246 | E115: 8.927796784 | G115: -190.4564571 | H115: 0.7907980127 | J115: 3.882459145 | K115: 5.909510267 | M115: -190.360581 | N115: 0.7907980127 | P115: 3.724693135 | Q115: 5.909510267
A116: 567 | B116: 749 | D116: 8.085595726 | E116: 8.826230962 | G116: -190.5814876 | H116: 43.19470263 | J116: 3.907657442 | K116: 5.845463294 | M116: -190.4965212 | N116: 43.19470263 | P116: 3.750182739 | Q116: 5.845463294
A117: 339 | B117: 570 | D117: 8.134155048 | E117: 8.72526253 | G117: -190.3585578 | H117: 85.10082703 | J117: 3.932373564 | K117: 5.781806758 | M117: -190.2883324 | N117: 85.10082703 | P117: 3.775500918 | Q117: 5.781806758
A118: 500 | B118: 489 | D118: 8.182154011 | E118: 8.623693019 | G118: -189.791471 | H118: 126.9422027 | J118: 3.9569087 | K118: 5.717722486 | M118: -189.691793 | N118: 126.9422027 | P118: 3.800689383 | Q118: 5.717722486
A119: 399 | B119: 572 | D119: 8.230157368 | E119: 8.520294945 | G119: -188.8680041 | H119: 169.148846 | J119: 3.981541444 | K119: 5.652397384 | M119: -188.7957756 | N119: 169.148846 | P119: 3.825908987 | Q119: 5.652397384
A120: 663 | B120: 747 | D120: 8.277018882 | E120: 8.417537276 | G120: -187.6115871 | H120: 210.6440211 | J120: 4.005695025 | K120: 5.587482635 | M120: -187.5443026 | N120: 210.6440211 | P120: 3.850951122 | Q120: 5.587482635
A121: 527 | B121: 617 | D121: 8.323310195 | E121: 8.314199726 | G121: -186.015313 | H121: 251.8604143 | J121: 4.029660076 | K121: 5.522145304 | M121: -185.9545986 | N121: 251.8604143 | P121: 3.875855527 | Q121: 5.522145304
A122: 278 | B122: 384 | D122: 8.369575429 | E122: 8.209034021 | G122: -184.0564483 | H122: 293.2177296 | J122: 4.053704704 | K122: 5.45555867 | M122: -183.9564745 | N122: 293.2177296 | P122: 3.900776655 | Q122: 5.45555867
A123: 373 | B123: 365 | D123: 8.414709848 | E123: 8.104551335 | G123: -181.7848549 | H123: 333.6609132 | J123: 4.077272724 | K123: 5.389402284 | M123: -181.6964095 | N123: 333.6609132 | P123: 3.92551287 | Q123: 5.389402284
A124: 628 | B124: 365 | D124: 8.459264582 | E124: 7.99951033 | G124: -179.1830075 | H124: 373.6156318 | J124: 4.100644037 | K124: 5.322828997 | M124: -179.1113517 | N124: 373.6156318 | P124: 3.950101925 | Q124: 5.322828997
A125: 600 | B125: 584 | D125: 8.503762777 | E125: 7.892642718 | G125: -176.2180017 | H125: 413.4848061 | J125: 4.124076106 | K125: 5.254998998 | M125: -176.1421669 | N125: 413.4848061 | P125: 3.974691796 | Q125: 5.254998998
A126: 605 | B126: 550 | D126: 8.547141895 | E126: 7.786500313 | G126: -172.9653842 | H126: 452.2513715 | J126: 4.147033689 | K126: 5.187619182 | M126: -172.9034419 | N126: 452.2513715 | P126: 3.999087956 | Q126: 5.187619182
A127: 368 | B127: 482 | D127: 8.589932203 | E127: 7.679821499 | G127: -169.3972693 | H127: 490.3274115 | J127: 4.169785789 | K127: 5.119828735 | M127: -169.3080886 | N127: 490.3274115 | P127: 4.023326174 | Q127: 5.119828735
A128: 324 | B128: 785 | D128: 8.632635551 | E128: 7.57131877 | G128: -165.4710795 | H128: 528.0928535 | J128: 4.192579075 | K128: 5.050775306 | M128: -165.3978667 | N128: 528.0928535 | P128: 4.047547871 | Q128: 5.050775306
A129: 375 | B129: 529 | D129: 8.674232256 | E129: 7.463582982 | G129: -161.2868987 | H129: 564.5843376 | J129: 4.214899593 | K129: 4.982192088 | M129: -161.2190002 | N129: 564.5843376 | P129: 4.071565776 | Q129: 4.982192088
A130: 375 | B130: 531 | D130: 8.715231397 | E130: 7.355333031 | G130: -156.8069004 | H130: 600.194011 | J130: 4.237005292 | K130: 4.913205162 | M130: -156.7079461 | N130: 600.194011 | P130: 4.095413669 | Q130: 4.913205162
A131: 507 | B131: 545 | D131: 8.756113208 | E131: 7.245262994 | G131: -151.9794826 | H131: 635.2729577 | J131: 4.259131908 | K131: 4.842950192 | M131: -151.9061037 | N131: 635.2729577 | P131: 4.119226357 | Q131: 4.842950192
A132: 649 | B132: 489 | D132: 8.795901504 | E132: 7.136001154 | G132: -146.9277361 | H132: 668.9263989 | J132: 4.280787106 | K132: 4.773185605 | M132: -146.872653 | N132: 668.9263989 | P132: 4.142823964 | Q132: 4.773185605
A133: 428 | B133: 369 | D133: 8.835083854 | E133: 7.026247718 | G133: -141.604468 | H133: 701.5205046 | J133: 4.302217639 | K133: 4.703024946 | M133: -141.5053762 | N133: 701.5205046 | P133: 4.166238289 | Q133: 4.703024946
A134: 391 | B134: 503 | D134: 8.87411858 | E134: 6.914679165 | G134: -135.9498418 | H134: 733.3721146 | J134: 4.323648172 | K134: 4.631592452 | M134: -135.8811211 | N134: 733.3721146 | P134: 4.189597465 | Q134: 4.631592452
A135: 292 | B135: 696 | D135: 8.912073601 | E135: 6.803959558 | G135: -130.1080651 | H135: 763.6688382 | J135: 4.344608318 | K135: 4.560670707 | M135: -130.0258366 | N135: 763.6688382 | P135: 4.212729157 | Q135: 4.560670707
A136: 646 | B136: 864 | D136: 8.949414672 | E136: 6.69277123 | G136: -124.0233 | H136: 792.745232 | J136: 4.365333489 | K136: 4.489361292 | M136: -123.9267301 | N136: 792.745232 | P136: 4.235663191 | Q136: 4.489361292
A137: 567 | B137: 749 | D137: 8.986577917 | E137: 6.579773886 | G137: -117.628393 | H137: 820.8790257 | J137: 4.38603716 | K137: 4.416777583 | M137: -117.5579106 | N137: 820.8790257 | P137: 4.25852098 | Q137: 4.416777583
A138: 339 | B138: 570 | D138: 9.022675941 | E138: 6.467665709 | G138: -111.08645 | H138: 847.3527373 | J138: 4.4062712 | K138: 4.344725225 | M138: -111.0020961 | N138: 847.3527373 | P138: 4.281137866 | Q138: 4.344725225
A139: 500 | B139: 489 | D139: 9.058152397 | E139: 6.355111977 | G139: -104.3338433 | H139: 872.4641678 | J139: 4.426259554 | K139: 4.272294413 | M139: -104.2406462 | N139: 872.4641678 | P139: 4.303541722 | Q139: 4.272294413
A140: 399 | B140: 572 | D140: 9.093420935 | E140: 6.240756463 | G140: -97.29713519 | H140: 896.4476806 | J140: 4.44620439 | K140: 4.198588234 | M140: -97.21898068 | N140: 896.4476806 | P140: 4.325847196 | Q140: 4.198588234
A141: 663 | B141: 747 | D141: 9.127639403 | E141: 6.127329779 | G141: -90.1558155 | H141: 918.6917428 | J141: 4.465680131 | K141: 4.125434283 | M141: -90.07531675 | N141: 918.6917428 | P141: 4.347897451 | Q141: 4.125434283
A142: 527 | B142: 617 | D142: 9.161229071 | E142: 6.013480986 | G142: -82.8394442 | H142: 939.4528304 | J142: 4.484899137 | K142: 4.051911952 | M142: -82.76156313 | N142: 939.4528304 | P142: 4.369718421 | Q142: 4.051911952
A143: 278 | B143: 384 | D143: 9.19458086 | E143: 5.89783877 | G143: -75.26942967 | H143: 958.9183616 | J143: 4.504052159 | K143: 3.977114615 | M143: -75.22814985 | N143: 958.9183616 | P143: 4.391417962 | Q143: 3.977114615
A144: 373 | B144: 365 | D144: 9.226898387 | E144: 5.783164468 | G144: -67.638876 | H144: 976.5921392 | J144: 4.522736464 | K144: 3.902890688 | M144: -67.55989908 | N144: 976.5921392 | P144: 4.41284719 | Q144: 3.902890688
A145: 628 | B145: 365 | D145: 9.258580276 | E145: 5.668091765 | G145: -59.87161446 | H145: 992.68539 | J145: 4.54115271 | K145: 3.828309353 | M145: -59.77862843 | N145: 992.68539 | P145: 4.434030129 | Q145: 3.828309353
A146: 600 | B146: 584 | D146: 9.289994472 | E146: 5.55123512 | G146: -51.88511023 | H146: 1007.33574 | J146: 4.559480137 | K146: 3.752454849 | M146: -51.78628612 | N146: 1007.33574 | P146: 4.455067809 | Q146: 3.752454849
A147: 605 | B147: 550 | D147: 9.32039086 | E147: 5.435384867 | G147: -43.88309964 | H147: 1020.169916 | J147: 4.577339128 | K147: 3.67719527 | M147: -43.79174739 | N147: 1020.169916 | P147: 4.475819441 | Q147: 3.67719527
A148: 368 | B148: 482 | D148: 9.350145169 | E148: 5.319160172 | G148: -35.78485819 | H148: 1031.350676 | J148: 4.594918536 | K148: 3.60159018 | M148: -35.68680467 | N148: 1031.350676 | P148: 4.496307161 | Q148: 3.60159018
A149: 324 | B149: 785 | D149: 9.37960214 | E149: 5.201162128 | G149: -27.50518021 | H149: 1040.963786 | J149: 4.612386 | K149: 3.524715268 | M149: -27.43159016 | N149: 1040.963786 | P149: 4.516625159 | Q149: 3.524715268
A150: 375 | B150: 529 | D150: 9.408058392 | E150: 5.084208327 | G150: -19.2552862 | H150: 1048.764562 | J150: 4.629385277 | K150: 3.448457149 | M150: -19.17185948 | N150: 1048.764562 | P150: 4.536640867 | Q150: 3.448457149
A151: 375 | B151: 531 | D151: 9.435866526 | E151: 4.966904276 | G151: -10.95114 | H151: 1054.864836 | J151: 4.646093323 | K151: 3.371866368 | M151: -10.86296306 | N151: 1054.864836 | P151: 4.556374569 | Q151: 3.371866368
A152: 507 | B152: 545 | D152: 9.463347862 | E152: 4.84783858 | G152: -2.506179081 | H152: 1059.29725 | J152: 4.662666093 | K152: 3.29401065 | M152: -2.433919886 | N152: 1059.29725 | P152: 4.5759136 | Q152: 3.29401065
A153: 649 | B153: 489 | D153: 9.489846194 | E153: 4.729854323 | G153: 5.86415669 | H153: 1061.949374 | J153: 4.678770965 | K153: 3.21679396 | M153: 5.916185478 | N153: 1061.949374 | P153: 4.595133742 | Q153: 3.21679396
A154: 428 | B154: 369 | D154: 9.515690773 | E154: 4.611544227 | G154: 14.2459194 | H154: 1062.880444 | J154: 4.694572909 | K154: 3.139258424 | M154: 14.33971521 | N154: 1062.880444 | P154: 4.614053459 | Q154: 3.139258424
A155: 391 | B155: 503 | D155: 9.5411793 | E155: 4.49148529 | G155: 22.72569327 | H155: 1062.06955 | J155: 4.710216124 | K155: 3.060464392 | M155: 22.82204094 | N155: 1062.06955 | P155: 4.632753223 | Q155: 3.060464392
A156: 293 | B156: 696 | D156: 9.56570315 | E156: 4.372544313 | G156: 31.0871497 | H156: 1059.538113 | J156: 4.72539184 | K156: 2.982331998 | M156: 31.18263337 | N156: 1059.538113 | P156: 4.651117293 | Q156: 2.982331998
A157: 647 | B157: 864 | D157: 9.589568024 | E157: 4.253302113 | G157: 39.41702951 | H157: 1055.291926 | J157: 4.740252964 | K157: 2.903895549 | M157: 39.50765073 | N157: 1055.291926 | P157: 4.66916235 | Q157: 2.903895549
A158: 567 | B158: 749 | D158: 9.613047811 | E158: 4.132324969 | G158: 47.80060307 | H158: 1049.256931 | J158: 4.754931873 | K158: 2.824208616 | M158: 47.83163743 | N158: 1049.256931 | P158: 4.686962001 | Q158: 2.824208616
A159: 339 | B159: 570 | D159: 9.635581854 | E159: 4.012501606 | G159: 56.02399762 | H159: 1041.587911 | J159: 4.769143866 | K159: 2.745206302 | M159: 56.08862476 | N159: 1041.587911 | P159: 4.704409102 | Q159: 2.745206302
A160: 500 | B160: 489 | D160: 9.657452106 | E160: 3.892401824 | G160: 64.17330472 | H160: 1032.237204 | J160: 4.783029716 | K160: 2.665915707 | M160: 64.26835596 | N160: 1032.237204 | P160: 4.721518588 | Q160: 2.665915707
A161: 400 | B161: 572 | D161: 9.67890848 | E161: 3.770582078 | G161: 72.33116591 | H161: 1021.078836 | J161: 4.796709919 | K161: 2.585384211 | M161: 72.41428234 | N161: 1021.078836 | P161: 4.738357205 | Q161: 2.585384211
A162: 664 | B162: 747 | D162: 9.699438633 | E162: 3.649951216 | G162: 80.28947044 | H162: 1008.398382 | J162: 4.80992405 | K162: 2.505560681 | M162: 80.37104865 | N162: 1008.398382 | P162: 4.754826521 | Q162: 2.505560681
A163: 527 | B163: 617 | D163: 9.719300596 | E163: 3.52906891 | G163: 88.13233282 | H163: 994.0955449 | J163: 4.822800681 | K163: 2.425465616 | M163: 88.21023255 | N163: 994.0955449 | P163: 4.770939768 | Q163: 2.425465616
A164: 278 | B164: 384 | D164: 9.738720146 | E164: 3.406482697 | G164: 95.93849173 | H164: 977.9944809 | J164: 4.835448379 | K164: 2.344140803 | M164: 96.01240651 | N164: 977.9944809 | P164: 4.786756836 | Q164: 2.344140803
A165: 373 | B165: 365 | D165: 9.757233578 | E165: 3.285119725 | G165: 103.5088148 | H165: 960.5069418 | J165: 4.847631179 | K165: 2.263547653 | M165: 103.5923228 | N165: 960.5069418 | P165: 4.802188118 | Q165: 2.263547653
A166: 628 | B166: 365 | D166: 9.775074839 | E166: 3.163530443 | G166: 110.9241423 | H166: 941.4816422 | J166: 4.859465401 | K166: 2.182700675 | M166: 111.0238914 | N166: 941.4816422 | P166: 4.817245182 | Q166: 2.182700675
A167: 600 | B167: 584 | D167: 9.792445429 | E167: 3.040254375 | G167: 118.2580973 | H167: 920.6956878 | J167: 4.871047638 | K167: 2.10063666 | M167: 118.3570819 | N167: 920.6956878 | P167: 4.831981074 | Q167: 2.10063666
A168: 606 | B168: 550 | D168: 9.80893057 | E168: 2.918235141 | G168: 125.3236016 | H168: 898.6804273 | J168: 4.882166557 | K168: 2.019328332 | M168: 125.3468971 | N168: 898.6804273 | P168: 4.846315117 | Q168: 2.019328332
A169: 368 | B169: 482 | D169: 9.824739978 | E169: 2.796014872 | G169: 132.1969759 | H169: 875.2360242 | J169: 4.892926178 | K169: 1.937784823 | M169: 132.2416949 | N169: 875.2360242 | P169: 4.860257256 | Q169: 1.937784823
A170: 324 | B170: 785 | D170: 9.840050753 | E170: 2.672125993 | G170: 138.9455937 | H170: 850.0960912 | J170: 4.903411082 | K170: 1.855038525 | M170: 138.9718445 | N170: 850.0960912 | P170: 4.873853712 | Q170: 1.855038525
A171: 375 | B171: 529 | D171: 9.8544973 | E171: 2.549526756 | G171: 145.3973197 | H171: 823.903126 | J171: 4.91343473 | K171: 1.773072237 | M171: 145.482144 | N171: 823.903126 | P171: 4.887032834 | Q171: 1.773072237
A172: 375 | B172: 531 | D172: 9.868264975 | E172: 2.426751883 | G172: 151.6227792 | H172: 796.4119375 | J172: 4.923088795 | K172: 1.690890327 | M172: 151.6424837 | N172: 796.4119375 | P172: 4.899802987 | Q172: 1.690890327
A173: 507 | B173: 545 | D173: 9.881506365 | E173: 2.302327619 | G173: 157.6820608 | H173: 767.3168801 | J173: 4.932445824 | K173: 1.607521383 | M173: 157.7639711 | N173: 767.3168801 | P173: 4.912203584 | Q173: 1.607521383
A174: 649 | B174: 489 | D174: 9.89390529 | E174: 2.179224999 | G174: 163.4206266 | H174: 737.3614186 | J174: 4.941344203 | K174: 1.524957037 | M174: 163.4675323 | N174: 737.3614186 | P174: 4.924172095 | Q174: 1.524957037
A175: 428 | B175: 369 | D175: 9.905622627 | E175: 2.055972253 | G175: 168.9023202 | H175: 706.2589114 | J175: 4.949863233 | K175: 1.442197502 | M175: 168.9429346 | N175: 706.2589114 | P175: 4.935715344 | Q175: 1.442197502
A176: 391 | B176: 503 | D176: 9.916786357 | E176: 1.931090365 | G176: 174.1790233 | H176: 673.6693022 | J176: 4.958063397 | K176: 1.358268164 | M176: 174.2720631 | N176: 673.6693022 | P176: 4.946865959 | Q176: 1.358268164
A177: 293 | B177: 696 | D177: 9.92712991 | E177: 1.807561297 | G177: 179.1161758 | H177: 640.4252653 | J177: 4.965808137 | K177: 1.275168227 | M177: 179.1443246 | N177: 640.4252653 | P177: 4.957570614 | Q177: 1.275168227
A178: 647 | B178: 864 | D178: 9.936789587 | E178: 1.683907708 | G178: 183.7698587 | H178: 606.2032596 | J178: 4.97316435 | K178: 1.191894371 | M178: 183.8477771 | N178: 606.2032596 | P178: 4.967834636 | Q178: 1.191894371
A179: 567 | B179: 749 | D179: 9.945868681 | E179: 1.558646242 | G179: 188.1829529 | H179: 570.6342025 | J179: 4.980180444 | K179: 1.107469371 | M179: 188.2822008 | N179: 570.6342025 | P179: 4.977683888 | Q179: 1.107469371
A180: 339 | B180: 570 | D180: 9.954150398 | E180: 1.434767929 | G180: 192.2429446 | H180: 534.6268282 | J180: 4.98674502 | K180: 1.023898748 | M180: 192.3255806 | N180: 534.6268282 | P180: 4.98707433 | Q180: 1.023898748
A181: 500 | B181: 489 | D181: 9.961746378 | E181: 1.310790775 | G181: 195.9972929 | H181: 497.8258228 | J181: 4.992912551 | K181: 0.9401762547 | M181: 196.0467771 | N181: 497.8258228 | P181: 4.996009829 | Q181: 0.9401762547
A182: 400 | B182: 572 | D182: 9.968735161 | E182: 1.185228017 | G182: 199.4792241 | H182: 459.838915 | J182: 4.99871936 | K182: 0.8553226608 | M182: 199.5633736 | N182: 459.838915 | P182: 5.004509511 | Q182: 0.8553226608
A183: 664 | B183: 747 | D183: 9.974949866 | E183: 1.061077877 | G183: 202.5999954 | H183: 421.6365624 | J183: 5.0040793 | K183: 0.7713485297 | M183: 202.6607313 | N183: 421.6365624 | P183: 5.012538688 | Q183: 0.7713485297
A184: 527 | B184: 617 | D184: 9.980477401 | E184: 0.9368546402 | G184: 205.3977189 | H184: 382.8373006 | J184: 5.009034406 | K184: 0.6872453076 | M184: 205.4229486 | N184: 382.8373006 | P184: 5.020099805 | Q184: 0.6872453076
A185: 278 | B185: 384 | D185: 9.985371505 | E185: 0.8110690622 | G185: 207.8954635 | H185: 343.0318691 | J185: 5.013608911 | K185: 0.6020323503 | M185: 207.9405537 | N185: 343.0318691 | P185: 5.027205284 | Q185: 0.6020323503
A186: 373 | B186: 365 | D186: 9.989515315 | E186: 0.6867246862 | G186: 210.0296109 | H186: 303.2371489 | J186: 5.017741994 | K186: 0.5177239944 | M186: 210.1257796 | N186: 303.2371489 | P186: 5.033829843 | Q186: 0.5177239944
A187: 628 | B187: 365 | D187: 9.992970951 | E187: 0.5623330019 | G187: 211.8283473 | H187: 263.0515561 | J187: 5.021463243 | K187: 0.433309991 | M187: 211.8609529 | N187: 263.0515561 | P187: 5.039974549 | Q187: 0.433309991
A188: 600 | B188: 584 | D188: 9.995767317 | E188: 0.4364032159 | G188: 213.3042397 | H188: 222.0553054 | J188: 5.024784807 | K188: 0.3478088789 | M188: 213.3766647 | N188: 222.0553054 | P188: 5.045645139 | Q188: 0.3478088789
A189: 606 | B189: 550 | D189: 9.997837642 | E189: 0.3119423147 | G189: 214.4197558 | H189: 181.2956768 | J189: 5.027671243 | K189: 0.263237491 | M189: 214.4659009 | N189: 181.2956768 | P189: 5.050825798 | Q189: 0.263237491
A190: 369 | B190: 482 | D190: 9.999219219 | E190: 0.1874599238 | G190: 215.1927315 | H190: 140.3573119 | J190: 5.030139692 | K190: 0.1785844965 | M190: 215.2687883 | N190: 140.3573119 | P190: 5.055516241 | Q190: 0.1785844965
A191: 324 | B191: 785 | D191: 9.999916101 | E191: 0.06146463184 | G191: 215.6250517 | H191: 98.81652852 | J191: 5.032190228 | K191: 0.0928682117 | M191: 215.7185566 | N191: 98.81652852 | P191: 5.059715558 | Q191: 0.0928682117
A192: 375 | B192: 529 | D192: 9.999911646 | E192: -0.06303501062 | G192: 215.7058245 | H192: 57.734508 | J192: 5.033812823 | K192: 0.008106686249 | M192: 215.8042219 | N192: 57.734508 | P192: 5.063417438 | Q192: 0.008106686249
A193: 375 | B193: 531 | D193: 9.999218301 | E193: -0.1875303106 | G193: 215.4422727 | H193: 16.6886762 | J193: 5.035012179 | K193: -0.07671188052 | M193: 215.5417709 | N193: 16.6886762 | P193: 5.066620277 | Q193: -0.07671188052
A194: 507 | B194: 545 | D194: 9.997815262 | E194: -0.3135123656 | G194: 214.8255852 | H194: -24.74185573 | J194: 5.035776305 | K194: -0.1625688013 | M194: 214.9196941 | N194: -24.74185573 | P194: 5.069316547 | Q194: -0.1625688013
A195: 650 | B195: 489 | D195: 9.99573603 | E195: -0.4379729411 | G195: 213.8716493 | H195: -65.49872113 | J195: 5.036120612 | K195: -0.2474460918 | M195: 213.9497545 | N195: -65.49872113 | P195: 5.071509475 | Q195: -0.2474460918
A196: 428 | B196: 369 | D196: 9.992968197 | E196: -0.5624033447 | G196: 212.5769779 | H196: -106.0050373 | J196: 5.036037368 | K196: -0.3323554112 | M196: 212.6769624 | N196: -106.0050373 | P196: 5.073196168 | Q196: -0.3323554112
A197: 391 | B197: 503 | D197: 9.989466114 | E197: -0.6882934281 | G197: 210.9222168 | H197: -146.6722543 | J197: 5.035502541 | K197: -0.4182771095 | M197: 210.9903559 | N197: -146.6722543 | P197: 5.074362508 | Q197: -0.4182771095
A198: 293 | B198: 696 | D198: 9.985313405 | E198: -0.8126371527 | G198: 208.9497533 | H198: -186.4614914 | J198: 5.034556983 | K198: -0.5031945508 | M198: 209.0320829 | N198: -186.4614914 | P198: 5.075021286 | Q198: -0.5031945508
A199: 647 | B199: 864 | D199: 9.980472813 | E199: -0.9369248951 | G199: 206.6454603 | H199: -225.7897285 | J199: 5.033180545 | K199: -0.5881186429 | M199: 206.7435804 | N199: -225.7897285 | P199: 5.075168342 | Q199: -0.5881186429
A200: 567 | B200: 749 | D200: 9.974873875 | E200: -1.06264433 | G200: 203.9797583 | H200: -265.0524782 | J200: 5.031337178 | K200: -0.6740281829 | M200: 204.0414854 | N200: -265.0524782 | P200: 5.074783003 | Q200: -0.6740281829
... 800 more rows
